Workbook

Sheet Cover
B13: H1 2024 DATA OF PIRAEUS FINANCIAL HOLDINGS
D18: Financial highlights | E18: 1
D19: EPS calculations | E19: 2
D20: Consolidated balance sheet | E20: 3
D21: Analysis of selected balance sheet items | E21: 4
D22: Consolidated P&L | E22: 5
D23: Net interest income | E23: 6
D24: Net fee income | E24: 7
D25: Operating costs | E25: 8
D26: P&L segment view | E26: 9
D27: Performing loans | E27: 10
D28: Loan portfolio quality | E28: 11
D29: IFRS9 stages | E29: 12
D30: NPE flow decomposition | E30: 13
D31: Capital adequacy | E31: 14
D32: Debt securities | E32: 15
D33: Other information | E33: 16
D34: Branches
D35: Employees
D36: # Shares
D37: Share & stock market data
D38: Ratings

Sheet Financial highlights
N2: Back to Cover
B5: FINANCIAL HIGHLIGHTS
B8: (million €)
B9: PROFIT/(LOSS) | C9: Q1 2022 | D9: Q2 2022 | E9: Q3 2022 | F9: Q4 2022 | G9: Q1 2023 | H9: Q2 2023 | I9: Q3 2023 | J9: Q4 2023 | K9: Q1 2024 | L9: Q2 2024 | M9: H1 2023 | N9: H1 2024
B10: Net interest income | C10: 285.895 | D10: 305.568 | E10: 330.592 | F10: 430.647 | G10: 446.866 | H10: 487.8 | I10: 531.351 | J10: 536.645 | K10: 517.629 | L10: 527.558 | M10: 934.666 | N10: 1045.187
B11: Net fee income | C11: 112.742032 | D11: 120.9729823 | E11: 125.3173056 | F11: 125.82768 | G11: 121.647 | H11: 141.406 | I11: 139.977 | J11: 143.606 | K11: 145.32 | L11: 179.239 | M11: 263.053 | N11: 324.559
B12: of which acquiring fees | C12: 7.02271175 | D12: -0.5933471 | E12: -0.10188484 | F12: -0.67009459 | G12: 0 | H12: 0 | I12: 0 | J12: 0 | K12: 0 | L12: 0 | M12: 0 | N12: 0
B13: Net trading result1 | C13: 585.389 | D13: 67.6 | E13: 64.161 | F13: -3.63 | G13: 9.754 | H13: 29.242 | I13: -7.895 | J13: 31.995 | K13: -4.427 | L13: 7.47 | M13: 38.996 | N13: 3.043
B14: Other operating result2 | C14: -2.361 | D14: 16.709 | E14: -6.805 | F14: 23.198 | G14: -1.48 | H14: 3.53 | I14: -10.245 | J14: 9.726 | K14: -66.651 | L14: 11.755 | M14: 2.05 | N14: -54.896
B15: of which one off trading & other operating items | C15: 510.7 | D15: 109.277 | E15: 52 | F15: 0 | G15: 0 | H15: 0 | I15: 0 | J15: 0 | K15: -43.292 | L15: 0 | M15: 0 | N15: -43.292
B16: Net revenues | C16: =C10+C11+C13+C14 -> 981.665032 | D16: 510.8499823 | E16: 513.2653056 | F16: 576.04268 | G16: 576.787 | H16: 661.978 | I16: 653.188 | J16: 721.972 | K16: =K10+K11+K13+K14 -> 591.871 | L16: 726.022 | M16: 1238.765 | N16: 1317.893
B17: Staff costs | C17: -91.201 | D17: -101.155 | E17: -121.266 | F17: -131.956 | G17: -96.719 | H17: -96.57 | I17: -80.358 | J17: -168.495 | K17: -100.868 | L17: -100.802 | M17: -193.289 | N17: -201.67
B18: General expenses | C18: -81.31903205 | D18: -87.15198231 | E18: -85.18530565 | F18: -83.88267999 | G18: -83.157 | H18: -78.429 | I18: -89.208 | J18: -64.235 | K18: -72.946 | L18: -73.255 | M18: -161.586 | N18: -146.201
B19: Depreciation | C19: -29.592 | D19: -24.891 | E19: -25.213 | F19: -25.965 | G19: -26.147 | H19: -26.212 | I19: -26.485 | J19: -27.078 | K19: -28.615 | L19: -29.194 | M19: -52.359 | N19: -57.809
B20: Total OpEx | C20: =SUM(C17:C19) -> -202.112032 | D20: -213.1979823 | E20: -231.6643056 | F20: -241.80368 | G20: -206.023 | H20: -201.211 | I20: -196.051 | J20: -259.808 | K20: =SUM(K17:K19) -> -202.429 | L20: -203.251 | M20: -407.234 | N20: -405.68
B21: of which one off items | C21: -4.14727088 | D21: -6.6 | E21: -19.87765 | F21: -30.314 | G21: -3.172 | H21: -2.174507 | I21: -1.566246 | J21: -63.649 | K21: -9.60330388 | L21: -4.2904095 | M21: -5.346507 | N21: -13.89371338
B22: Pre provision income reported | C22: =C16+C20 -> 779.553 | D22: =D16+D20 -> 297.652 | E22: 281.601 | F22: 334.239 | G22: 370.764 | H22: 460.767 | I22: 457.137 | J22: 462.164 | K22: =K16+K20 -> 389.442 | L22: 522.771 | M22: 831.531 | N22: 912.213
B23: Pre provision income normalized | C23: =C22-C15-C21-C12 -> 265.9775591 | D23: 195.5683471 | E23: 249.5805348 | F23: 365.2230946 | G23: 373.936 | H23: 462.941507 | I23: 458.703246 | J23: 525.813 | K23: =K22-K15-K21-K12 -> 442.3373039 | L23: 527.0614095 | M23: 836.877507 | N23: 969.3987134
B24: Impairments for loans | C24: -229.729 | D24: -190.241 | E24: -91.523 | F24: -103.126 | G24: -95.394 | H24: -283.028 | I24: -75.677 | J24: -104.504 | K24: -58.474 | L24: -43.261 | M24: -378.422 | N24: -101.735
B25: of which inorganic (losses on NPE sales)3 | C25: -151.6 | D25: -117.35 | E25: -18.381 | F25: -33.1 | G25: -20.761 | H25: -180.799114 | I25: 0 | J25: -51.51 | K25: -12.14 | L25: 0 | M25: -201.560114 | N25: -12.14
B26: Other impairments & associates' income | C26: -7.738 | D26: -14.417 | E26: -18.78 | F26: -0.595 | G26: -20.998 | H26: -43.989 | I26: -2.104 | J26: -46.639 | K26: -6.024 | L26: -27.35 | M26: -64.987 | N26: -33.374
B27: of which one off items4 | C27: 0 | D27: 0 | E27: 0 | F27: 25.8 | G27: 0 | H27: 0 | I27: 0 | J27: 0 | K27: 0 | L27: 0 | M27: 0 | N27: 0
B28: Profit before tax reported | C28: =C22+C24+C26 -> 542.086 | D28: =D22+D24+D26 -> 92.994 | E28: =E22+E24+E26 -> 171.298 | F28: =F22+F24+F26 -> 230.518 | G28: 254.372 | H28: 133.75 | I28: =I22+I24+I26 -> 379.356 | J28: 311.021 | K28: 324.944 | L28: 452.16 | M28: 388.122 | N28: 777.104
B29: Profit before tax normalized | C29: =C23+C24+C26-C25 -> 180.1105591 | D29: =D23+D24+D26-D25 -> 108.2603471 | E29: =E23+E24+E26-E25 -> 157.6585348 | F29: =F23+F24+F26-F25-F27 -> 268.8020946 | G29: 278.305 | H29: 316.723621 | I29: =I23+I24+I26-I25-I27 -> 380.922246 | J29: 426.18 | K29: =K23+K24+K26-K25-K27 -> 389.9793039 | L29: 456.4504095 | M29: 595.028621 | N29: 846.4297134
B30: Tax | C30: -22.04 | D30: -0.289 | E30: -55.846 | F30: -61.52 | G30: -75.64 | H30: -14.627 | I30: -102.388 | J30: -99.455 | K30: -91.998 | L30: -120.983 | M30: -90.267 | N30: -212.981
B31: Tax normalized5 | C31: -46.82874537 | D31: -28.14769025 | E31: -40.99121906 | F31: -69.88854459 | G31: -75.64 | H31: -79.18090525 | I31: -102.388 | J31: -99.455 | K31: -110.8582381 | L31: -122.2272188 | M31: -154.8209053 | N31: -233.0854569
B32: Minorities | C32: -1.217 | D32: 0.243 | E32: -0.194 | F32: -0.564 | G32: -1.029 | H32: -0.56 | I32: -0.411 | J32: 0.324 | K32: -0.186 | L32: 1.17 | M32: -1.589 | N32: 0.984
B33: Net profit core | C33: =C28+C31-C25-C21-C13-C32-C12-C14 -> 62.17081376 | D33: =D28+D31-D25-D21-D13-D32-D12-D14 -> 104.8376569 | E33: =E28+E31-E25-E21-E13-E32-E12-E14 -> 111.5053158 | F33: =F28+F31-F25-F21-F13-F32-F12-F27-F14 -> 179.90955 | G33: 195.42 | H33: 205.3307158 | I33: 297.085246 | J33: 284.68 | K33: =K28+K31-K25-K21-K13-K32-K12-K27-K14 -> 307.0930658 | L33: 313.8281907 | M33: 400.7507158 | N33: 620.9212565
B34: Trading & other income normalized | C34: 72.328 | D34: -24.968 | E34: 5.356 | F34: 19.568 | G34: 8.274 | H34: 32.772 | I34: -18.14 | J34: 41.721 | K34: -27.786 | L34: 19.225 | M34: 41.046 | N34: -8.561
B35: Net profit normalized6 | C35: =C34+C33 -> 134.4988138 | D35: =D34+D33 -> 79.86965685 | E35: 116.8613158 | F35: 199.47755 | G35: 203.694 | H35: 238.1027158 | I35: =I34+I33 -> 278.945246 | J35: =J34+J33 -> 326.401 | K35: =K34+K33 -> 279.3070658 | L35: =L34+L33 -> 333.0531907 | M35: =M34+M33 -> 441.7967158 | N35: =N34+N33 -> 612.3602565
B36: Net profit from continuing operations attributable to SHs | C36: =C28+C30-C32 -> 521.263 | D36: =D28+D30-D32 -> 92.462 | E36: =E28+E30-E32 -> 115.646 | F36: =F28+F30-F32 -> 169.562 | G36: 179.761 | H36: 119.683 | I36: =I28+I30-I32 -> 277.379 | J36: =J28+J30-J32 -> 211.242 | K36: =K28+K30-K32 -> 233.132 | L36: =L28+L30-L32 -> 330.007 | M36: =M28+M30-M32 -> 299.444 | N36: =N28+N30-N32 -> 563.139
B38: BALANCE SHEET | C38: 2022-03-31 | D38: 2022-06-30 | E38: 2022-09-30 | F38: 2022-12-31 | G38: 2023-03-31 | H38: 2023-06-30 | I38: 2023-09-30 | J38: 2023-12-31 | K38: 2024-03-31 | L38: 2024-06-30 | M38: 2023-06-30 | N38: 2024-06-30
B39: Assets adjusted9 (excl. discontinued operations, seasonal OPEKEPE) | C39: 79384.396 | D39: 81755.794 | E39: 82656.068 | F39: 73127.69344 | G39: 74679.886 | H39: 76982.616 | I39: 79258.884 | J39: 75499.73826 | K39: 77250.434 | L39: 76625.849 | M39: =H39 -> 76982.616 | N39: =L39 -> 76625.849
B40: Gross loans7 | C40: 37157.48481 | D40: 37012.81045 | E40: 37723.69932 | F40: 38849.67037 | G40: 36823.95331 | H40: 36987.84164 | I40: 37298.18312 | J40: 38398.37078 | K40: 37198.03578 | L40: 38398.53902 | M40: 36987.84164 | N40: 38398.53902
B41: of which NPEs7 | C41: 4721.739548 | D41: 3425.745327 | E41: 3331.291721 | F41: 2624.316229 | G41: 2441.552917 | H41: 2048.579632 | I41: 2045.456256 | J41: 1329.320358 | K41: 1302.642 | L41: 1263.507148 | M41: 2048.579632 | N41: 1263.507148
B42: Net loans (excl. seasonal OPEKEPE)7 | C42: 35076.958 | D42: 35445.339 | E42: 36093.035 | F42: 35900.87743 | G42: 35464.218 | H42: 35823.852 | I42: 36126.286 | J42: 36628.64968 | K42: 36414.09 | L42: 37655.427 | M42: 35823.852 | N42: 37655.427
B43: Tangible equity | C43: 5303.916 | D43: 5312.394 | E43: 5426.126 | F43: 5640.784 | G43: 5825.1 | H43: 5920.188 | I43: 6170.985 | J43: 6350.767 | K43: 6589.122 | L43: 6782.138 | M43: 5920.188 | N43: 6782.138
B44: Total equity | C44: 6189.02 | D44: 6212.824 | E44: 6354.025 | F44: 6580.656 | G44: 6765.215 | H44: 6892.644 | I44: 7145.324 | J44: 7353.461 | K44: 7590.553 | L44: 7804.45 | M44: 6892.644 | N44: 7804.45
B46: RATIOS & METRICS | C46: Q1.22 | D46: Q2.22 | E46: Q3.22 | F46: Q4.22 | G46: Q1 2023 | H46: Q2 2023 | I46: Q3 2023 | J46: Q4 2023 | K46: Q1 2024 | L46: Q2 2024 | M46: H1 2023 | N46: H1 2024
B47: Core EPS (€) adjusted for AT1 coupon | C47: =(C33-(600*8.75%/4))/1250.367223 -> 0.03922512751 | D47: 0.07334857726 | E47: 0.07868113781 | F47: =(F33-(600*8.75%/4))/1250.367223 -> 0.1333884534 | G47: =(G33-(600*8.75%/4))/1250.367223 -> 0.1457931691 | H47: 0.1537194132 | I47: =(I33-(600*8.75%/4))/1250.367223 -> 0.2271014793 | J47: 0.2171801971 | K47: =(K33-(600*8.75%/4))/1250.367223 -> 0.2351053837 | L47: 0.2404919013 | M47: =(M33-(600*8.75%/2))/1250.367223 -> 0.2995125823 | N47: =(N33-(600*8.75%/2))/1250.367223 -> 0.475597285
B48: Normalized EPS (€) adjusted for AT1 coupon | C48: =(C35-(600*8.75%/4))/1250.367223 -> 0.09707053378 | D48: =(D35-(600*8.75%/4))/1250.367223 -> 0.05338004358 | E48: =(E35-(600*8.75%/4))/1250.367223 -> 0.08296467939 | F48: =(F35-(600*8.75%/4))/1250.367223 -> 0.1490382558 | G48: =(G35-(600*8.75%/4))/1250.367223 -> 0.1524104251 | H48: 0.1799293133 | I48: =(I35-(600*8.75%/4))/1250.367223 -> 0.2125937414 | J48: 0.2505471946 | K48: =(K35-(600*8.75%/4))/1250.367223 -> 0.2128831121 | L48: 0.2558673843 | M48: =(M35-(600*8.75%/2))/1250.367223 -> 0.3323397384 | N48: =(N35-(600*8.75%/2))/1250.367223 -> 0.4687504964
B49: Reported EPS (€) adjusted for AT1 coupon | C49: 0.4063910111 | D49: =(D36-(600*8.75%/4))/1250.367223 -> 0.06345095948 | E49: =(E36-(600*8.75%/4))/1250.367223 -> 0.08199271231 | F49: =(F36-(600*8.75%/4))/1250.367223 -> 0.1251128445 | G49: =(G36-(600*8.75%/4))/1250.367223 -> 0.1332696483 | H49: 0.0852213638 | I49: =(I36-(600*8.75%/4))/1250.367223 -> 0.2113411125 | J49: 0.1584470517 | K49: =(K36-(600*8.75%/4))/1250.367223 -> 0.1759539085 | L49: 0.2534311474 | M49: =(M36-(600*8.75%/2))/1250.367223 -> 0.2184910121 | N49: =(N36-(600*8.75%/2))/1250.367223 -> 0.4293850559
B50: RoaTBV normalized adjusted for AT1 coupon | C50: =(C35-(600*8.75%/4))*4/5112 -> 0.09497168526 | D50: =(D35-(600*8.75%/4))*4/AVERAGE(C43:D43) -> 0.05029593661 | E50: 0.07728164833 | F50: 0.1347097248 | G50: 0.1329641919 | H50: 0.1532377687 | I50: 0.1758772261 | J50: =(J35-(600*8.75%/4))*4/AVERAGE(I43:J43) -> 0.2001483498 | K50: =(K35-(600*8.75%/4))*4/AVERAGE(J43:K43) -> 0.1645652854 | L50: =(L35-(600*8.75%/4))*4/AVERAGE(K43:L43) -> 0.1914124418 | M50: =(M35-(600*8.75%/2))*2/AVERAGE(H43,F43) -> 0.1437757018 | N50: =(N35-(600*8.75%/2))*2/AVERAGE(J43,L43) -> 0.1785165602
B51: RoaA normalized adjusted for AT1 coupon | C51: =(C35-(600*8.75%/4))*4/78793 -> 0.006161654652 | D51: =(D35-(600*8.75%/4))*4/((D39+C39)/2) -> 0.00331361937 | E51: 0.005047631699 | F51: 0.009569806161 | G51: 0.01031443723 | H51: 0.0118672823 | I51: 0.01361073702 | J51: =(J35-(600*8.75%/4))*4/((J39+I39)/2) -> 0.01619430287 | K51: =(K35-(600*8.75%/4))*4/((K39+J39)/2) -> 0.01394077987 | L51: =(L35-(600*8.75%/4))*4/((L39+K39)/2) -> 0.01663300852 | M51: =(M35-(600*8.75%/2))*2/((M39+F39)/2) -> 0.01107310263 | N51: =(N35-(600*8.75%/2))*2/((N39+J39)/2) -> 0.01541122087
B52: TBV per share | C52: =C43/1250.367223 -> 4.241886625 | D52: 4.248667033 | E52: 4.339625912 | F52: 4.511301877 | G52: 4.658711371 | H52: 4.73475943 | I52: 4.935338104 | J52: 5.079121464 | K52: =K43/1250.367223 -> 5.269749461 | L52: 5.424116912 | M52: 4.73475943 | N52: 5.424116912
B53: Net profit over revenues core adjusted for AT1 coupon | C53: =(C33-(600*8.75%/4))/(C10+C11-C12) -> 0.1252400926 | D53: 0.2147161924 | E53: 0.2157410121 | F53: 0.2993558544 | G53: 0.3206522982 | H53: 0.3054734312 | I53: 0.4229828728 | J53: 0.3991982371 | K53: =(K33-(600*8.75%/4))/(K10+K11-K12) -> 0.4434248573 | L53: 0.4254449166 | M53: =(M33-(600*8.75%/2))/(M10+M11-M12) -> 0.3126782791 | N53: =(N33-(600*8.75%/2))/(N10+N11-N12) -> 0.4341471021
B54: NPE ratio | C54: =C41/C40 -> 0.1270737127 | D54: =D41/D40 -> 0.09255566614 | E54: =E41/E40 -> 0.08830766284 | F54: =F41/F40 -> 0.06755054043 | G54: 0.06630338944 | H54: 0.05538521689 | I54: =I41/I40 -> 0.05484064062 | J54: 0.03461918646 | K54: =K41/K40 -> 0.03501910713 | L54: 0.03290508389 | M54: 0.05538521689 | N54: 0.03290508389
B55: NII/Assets | C55: =NII!C37 -> 0.01451378082 | D55: =NII!D37 -> 0.01517029364 | E55: =NII!E37 -> 0.01608604129 | F55: =NII!F37 -> 0.02211511629 | G55: =NII!G37 -> 0.02418636455 | H55: =NII!H37 -> 0.02573081644 | I55: =NII!I37 -> 0.02720665124 | J55: 0.02774100685 | K55: 0.02710983522 | L55: 0.02742764458 | M55: 0.02490611081 | N55: 0.02748221437
B56: NFI/Assets | C56: =(C11-C12)*4/78793 -> 0.005366939718 | D56: =(D11-D12)*4/((D39+C39)/2) -> 0.006035307736 | E56: 0.006102683296 | F56: 0.006496069855 | G56: 0.006584073724 | H56: 0.007458982841 | I56: 0.007167212296 | J56: 0.007423482991 | K56: =(K11-K12)*4/((K39+J39)/2) -> 0.007610858847 | L56: =(L11-L12)*4/((L39+K39)/2) -> 0.009318603049 | M56: =(M11-M12)*2/((M39+F39)/2) -> 0.007009591839 | N56: =(N11-N12)*2/((N39+J39)/2) -> 0.008533975272
B57: Cost-to-income ratio core | C57: =-(C20-C21)/(C10+C11-C12) -> 0.5055095049 | D57: 0.4836838626 | E57: 0.4644330228 | F57: 0.3795955551 | G57: 0.3568097827 | H57: 0.316329617 | I57: 0.2897015378 | J57: 0.2883626779 | K57: =-(K20-K21)/(K10+K11-K12) -> 0.2908605279 | L57: 0.281496088 | M57: 0.3355440575 | N57: 0.2860284218
B58: CoR underlying | C58: 0.005021667956 | D58: 0.00514572593 | E58: 0.004952201997 | F58: 0.001941345309 | G58: 0.004023999627 | H58: 0.007700620885 | I58: 0.005220907569 | J58: 0.002727482472 | K58: 0.001694179368 | L58: 0.002109443614 | M58: 0.005842111882 | N58: 0.001873886598
B59: CoR organic | C59: =-(C24-C25)/C42*4 -> 0.008909438498 | D59: =-(D24-D25)/D42*4 -> 0.008225735971 | E59: =-(E24-E25)/E42*4 -> 0.008105940661 | F59: 0.00780214914 | G59: 0.008417836818 | H59: 0.01141461683 | I59: 0.008379161921 | J59: 0.005787163923 | K59: =-(K24-K25)/K42*4 -> 0.005089678199 | L59: 0.004595459773 | M59: =-(M24-M25)/M42*2 -> 0.009873973686 | N59: =-(N24-N25)/N42*2 -> 0.004758676618
B60: CET 1 ratio FL8 | C60: 0.09772035991 | D60: 0.09505072306 | E60: 0.1040112821 | F60: 0.1162032555 | G60: ='Capital adequacy'!G33 -> 0.1216068364 | H60: ='Capital adequacy'!H24 -> 0.1233708912 | I60: 0.1287442528 | J60: 0.1328970842 | K60: 0.1367929846 | L60: 0.1417800503 | M60: =H60 -> 0.1233708912 | N60: =L60 -> 0.1417800503
B61: Total capital ratio FL8 | C61: 0.1455061058 | D61: 0.1430642046 | E61: 0.1514937508 | F61: 0.1651509619 | G61: ='Capital adequacy'!G34 -> 0.1696628642 | H61: ='Capital adequacy'!H25 -> 0.17106045 | I61: 0.1755583399 | J61: 0.181892606 | K61: 0.1852043655 | L61: 0.1899797541 | M61: =H61 -> 0.17106045 | N61: =L61 -> 0.1899797541
B63: 1. Q3.23 net trading result mainly derived from market making and other primary market activity
B64: 2. Other operating result includes dividend income
B65: 3. Q3.2023 onwards inorganic impairments for loans include only losses on NPE sales transactions
B66: 4. For an analysis of all PnL one-off items refer to spreadsheet "EPS calculations"
B67: 5. Normalized profits are calculated under an assumption of normalized tax rate. A projected effective corporate tax rate of 26% has been used for 2022 and 2023, based on Piraeus business plan assumptions for 2023
B68: 6. As of Q1.2024 normalized profits are calculated adjusting one-off items for the 29% tax rate
B69: 7. Gross loans, Net loans and NPEs include loans and advances to customers at fair valued through P&L
B70: 8. Capital ratios for June and September 2023 are pro-forma for the RWA relief from the Sunrise 3, Solar NPE securitizations and the RWA of the Delta and Wheel NPE portfolios, classified as HFS as at 30 September 2023; capital ratios for December 2023 are pro forma for RWA relief mainly from the Solar NPE securitizations and the RWA of the Delta, Monza NPE portfolios, classified as HFS as at 31 December 2023 as well as the capital accretion from the new issuance of Tier 2 in January 2024; Capital ratios for March 2024 are pro forma for RWA relief mainly from the Solar NPE securitizations and the RWA of the Delta, Monza NPE portfolios, classified as HFS as at 31 March 2024; Capital ratios for June 2024 are pro forma for the RWA relief mainly from the Solar NPE securitization and the Monza NPE portfolio, classified as HFS as at 30 June 2024 and taking into account the revised credit quality step (CQS) mapping of the ICAP-CRIF external credit assessment institution (‘ECAI’), as per the recently published EU Commission Implementing Regulation (EU) 2024/1872 of 1 July 2024
B71: 9. Assets for 31 December 2022 have been reclassified for comparative purposes

Sheet EPS calculations
N2: Back to Cover
B5: EPS CALCULATIONS
B8: (million €)
B9: GROUP FIGURES | C9: Q1 2022 | D9: Q2 2022 | E9: Q3 2022 | F9: Q4 2022 | G9: Q1 2023 | H9: Q2 2023 | I9: Q3 2023 | J9: Q4 2023 | K9: Q1 2024 | L9: Q2 2024 | M9: H1 2023 | N9: H1 2024
B10: Net interest income | C10: 285.895 | D10: 305.568 | E10: 330.592 | F10: 430.647 | G10: 446.866 | H10: 487.8 | I10: 531.351 | J10: 536.645 | K10: 517.629 | L10: 527.558 | M10: 934.666 | N10: 1045.187
B11: Net fee income & rental/non bank income (1) | C11: 105.7193203 | D11: 121.5663294 | E11: 125.4191905 | F11: 126.4977746 | G11: 121.647 | H11: 141.406 | I11: 139.977 | J11: 143.606 | K11: 145.32 | L11: 179.239 | M11: 263.053 | N11: 324.559
B12: Operating expenses | C12: -197.9647612 | D12: -206.5979823 | E12: -211.7866556 | F12: -211.48968 | G12: -202.851 | H12: -199.036493 | I12: -194.484754 | J12: -196.159 | K12: -192.8256961 | L12: -198.9605905 | M12: -401.887493 | N12: -391.7862866
B13: of which staff costs recurring | C13: -91.201 | D13: -94.555 | E13: -101.38835 | F13: -101.642 | G13: -93.547 | H13: -94.395493 | I13: -94.291754 | J13: -104.846 | K13: -91.26469612 | L13: -96.5115905 | M13: -187.942493 | N13: -187.7762866
B14: of which G&A costs recurring | C14: -81.31903205 | D14: -87.15198231 | E14: -85.18530565 | F14: -83.88267999 | G14: -83.157 | H14: -78.429 | I14: -73.708 | J14: -64.235 | K14: -72.946 | L14: -73.255 | M14: -161.586 | N14: -146.201
B15: of which depreciation recurring | C15: -25.44472912 | D15: -24.891 | E15: -25.213 | F15: -25.965 | G15: -26.147 | H15: -26.212 | I15: -26.485 | J15: -27.078 | K15: -28.615 | L15: -29.194 | M15: -52.359 | N15: -57.809
B16: Underlying cost of risk | C16: -44.036209 | D16: -45.598 | E16: -44.685 | F16: -17.424 | G16: -35.677 | H16: -68.96647572 | I16: -47.153 | J16: -24.976 | K16: -15.423 | L16: -19.858 | M16: -104.6434757 | N16: -35.281
B17: Servicing fees | C17: -29.140057 | D17: -21.293 | E17: -19.511053 | F17: -39.05396595 | G17: -26.088285 | H17: -20.32568855 | I17: -17.27913315 | J17: -16.85273756 | K17: -20.556513 | L17: -14.783 | M17: -46.41397355 | N17: -35.339513
B18: Credit protection costs | C18: -4.952734 | D18: -6 | E18: -8.945947 | F18: -13.54803405 | G18: -12.867715 | H18: -12.93672172 | I18: -11.24486685 | J18: -11.16526244 | K18: -10.354487 | L18: -8.62 | M18: -25.80443672 | N18: -18.974487
B19: Impairment on other assets (2) | C19: -3.313 | D19: -9.418 | E19: -19.057 | F19: -38.635 | G19: -10.359 | H19: -32.141 | I19: -17.819 | J19: -38.191 | K19: -28.539 | L19: -15.302 | M19: -42.5 | N19: -43.841
B20: Associates' income | C20: -4.425 | D20: -4.999 | E20: 0.277 | F20: 12.24 | G20: -10.639 | H20: -11.848 | I20: 15.715 | J20: -8.448 | K20: 22.515 | L20: -12.048 | M20: -22.487 | N20: 10.467
B21: Core operating income | C21: =SUM(C10:C12)+SUM(C16:C20) -> 107.7825591 | D21: 133.2283471 | E21: 152.3025348 | F21: 249.2340946 | G21: 270.031 | H21: 283.951621 | I21: =SUM(I10:I12)+SUM(I16:I20) -> 399.062246 | J21: 384.459 | K21: 417.7653039 | L21: 437.2254095 | M21: 553.982621 | N21: 854.9907134
B22: Tax | C22: -22.04 | D22: -0.289 | E22: -55.846 | F22: -61.52 | G22: -75.64 | H22: -14.627 | I22: -102.388 | J22: -99.455 | K22: -91.998 | L22: -120.983 | M22: -90.267 | N22: -212.981
B23: Tax normalized | C23: -46.82874537 | D23: -28.14769025 | E23: -40.99121906 | F23: -69.88854459 | G23: -75.64 | H23: -79.18090525 | I23: -102.388 | J23: -99.455 | K23: -110.8582381 | L23: -122.2272188 | M23: -154.8209053 | N23: -233.0854569
B24: Minorities | C24: 1.217 | D24: -0.243 | E24: 0.194 | F24: 0.564 | G24: 1.029 | H24: 0.56 | I24: 0.411 | J24: -0.324 | K24: 0.186 | L24: -1.17 | M24: 1.589 | N24: -0.984
B25: Core operating profit | C25: =C21+C23+C24 -> 62.17081376 | D25: =D21+D23+D24 -> 104.8376569 | E25: =E21+E23+E24 -> 111.5053158 | F25: 179.90955 | G25: 195.42 | H25: 205.3307158 | I25: =I21+I23+I24 -> 297.085246 | J25: =J21+J23+J24 -> 284.68 | K25: =K21+K23+K24 -> 307.0930658 | L25: =L21+L23+L24 -> 313.8281907 | M25: =M21+M23+M24 -> 400.7507158 | N25: =N21+N23+N24 -> 620.9212565
B27: AT1 coupon | C27: -13.125 | D27: -13.125 | E27: -13.125 | F27: -13.125 | G27: -13.125 | H27: -13.125 | I27: -13.125 | J27: -13.125 | K27: -13.125 | L27: -13.125 | M27: =G27+H27 -> -26.25 | N27: =K27+L27 -> -26.25
B28: Core operating profit adjusted for AT1 cpn | C28: =C25+C27 -> 49.04581376 | D28: =D25+D27 -> 91.71265685 | E28: =E25+E27 -> 98.38031578 | F28: 166.78455 | G28: 182.295 | H28: 192.2057158 | I28: =I25+I27 -> 283.960246 | J28: 271.555 | K28: 293.9680658 | L28: 300.7031907 | M28: 374.5007158 | N28: 594.6712565
B29: Core EPS | C29: =C28/(C53/1000000) -> 0.03922512751 | D29: =D28/(C53/1000000) -> 0.07334857726 | E29: =E28/(C53/1000000) -> 0.07868113781 | F29: =F28/(C53/1000000) -> 0.1333884534 | G29: =G28/(C53/1000000) -> 0.1457931691 | H29: =H28/(C53/1000000) -> 0.1537194132 | I29: =I28/(C53/1000000) -> 0.2271014793 | J29: =J28/(C53/1000000) -> 0.2171801971 | K29: =K28/(C53/1000000) -> 0.2351053837 | L29: =L28/(C53/1000000) -> 0.2404919013 | M29: =M28/(C53/1000000) -> 0.2995125823 | N29: =N28/(C53/1000000) -> 0.475597285
B31: Core operating profit | C31: =C25 -> 62.17081376 | D31: =D25 -> 104.8376569 | E31: =E25 -> 111.5053158 | F31: =F25 -> 179.90955 | G31: =G25 -> 195.42 | H31: 205.3307158 | I31: =I25 -> 297.085246 | J31: =J25 -> 284.68 | K31: =K25 -> 307.0930658 | L31: 313.8281907 | M31: 400.7507158 | N31: 620.9212565
B32: Net trading result normalized (3) | C32: 74.689 | D32: -41.677 | E32: 12.161 | F32: -3.63 | G32: 9.754 | H32: 29.242 | I32: -7.895 | J32: 31.995 | K32: -4.427 | L32: 7.47 | M32: 38.996 | N32: 3.043
B33: Other operating result normalized (4) | C33: -2.361 | D33: 16.709 | E33: -6.805 | F33: 23.198 | G33: -1.48 | H33: 3.53 | I33: -10.245 | J33: 9.726 | K33: -23.359 | L33: 11.755 | M33: 2.05 | N33: -11.604
B34: Normalized operating profit(5) | C34: =C31+C32+C33 -> 134.4988138 | D34: 79.86965685 | E34: =E31+E32+E33 -> 116.8613158 | F34: 199.47755 | G34: 203.694 | H34: 238.1027158 | I34: =I31+I32+I33 -> 278.945246 | J34: =J31+J32+J33 -> 326.401 | K34: =K31+K32+K33 -> 279.3070658 | L34: =L31+L32+L33 -> 333.0531907 | M34: =M31+M32+M33 -> 441.7967158 | N34: =N31+N32+N33 -> 612.3602565
B36: AT1 coupon (mn) | C36: -13.125 | D36: -13.125 | E36: -13.125 | F36: -13.125 | G36: -13.125 | H36: -13.125 | I36: -13.125 | J36: -13.125 | K36: -13.125 | L36: -13.125 | M36: =G36+H36 -> -26.25 | N36: =K36+L36 -> -26.25
B37: Normalized operating profit adjusted for AT1 cpn (mn) | C37: =C34+C36 -> 121.3738138 | D37: =D34+D36 -> 66.74465685 | E37: =E34+E36 -> 103.7363158 | F37: =F34+F36 -> 186.35255 | G37: =G34+G36 -> 190.569 | H37: =H34+H36 -> 224.9777158 | I37: =I34+I36 -> 265.820246 | J37: =J34+J36 -> 313.276 | K37: =K34+K36 -> 266.1820658 | L37: 319.9281907 | M37: 415.5467158 | N37: 586.1102565
B38: Normalized EPS | C38: =C37/(C53/1000000) -> 0.09707053378 | D38: =D37/(C53/1000000) -> 0.05338004358 | E38: =E37/(C53/1000000) -> 0.08296467939 | F38: =F37/(C53/1000000) -> 0.1490382558 | G38: =G37/(C53/1000000) -> 0.1524104251 | H38: =H37/(C53/1000000) -> 0.1799293133 | I38: =I37/(C53/1000000) -> 0.2125937414 | J38: =J37/(C53/1000000) -> 0.2505471946 | K38: =K37/(C53/1000000) -> 0.2128831121 | L38: =L37/(C53/1000000) -> 0.2558673843 | M38: =M37/(C53/1000000) -> 0.3323397384 | N38: =N37/(C53/1000000) -> 0.4687504964
B40: Normalized Operating Profit(5) | C40: =C34 -> 134.4988138 | D40: =D34 -> 79.86965685 | E40: =E34 -> 116.8613158 | F40: 199.47755 | G40: =G34 -> 203.694 | H40: 238.1027158 | I40: =I34 -> 278.945246 | J40: =J34 -> 326.401 | K40: =K34 -> 279.3070658 | L40: 333.0531907 | M40: 441.7967158 | N40: 612.3602565
B41: Inorganic impairments (losses on NPE sales)(6) | C41: -151.6 | D41: -117.35 | E41: -18.381 | F41: -33.1 | G41: -20.761 | H41: -180.799114 | I41: 0 | J41: -51.51 | K41: -12.14 | L41: 0 | M41: -201.560114 | N41: -12.14
B42: Merchant acquiring business carveout | C42: 281 | D42: 0 | E42: 0 | F42: 0 | G42: 0 | H42: 0 | I42: 0 | J42: 0 | K42: 0 | L42: 0 | M42: 0 | N42: 0
B43: Fee, trading and other operating result one offs | C43: 236.7227118 | D43: 108.6836529 | E43: 51.89811516 | F43: -0.67009459 | G43: 0 | H43: 0 | I43: 0 | J43: 0 | K43: -43.292 | L43: 0 | M43: 0 | N43: -43.292
B44: Operating costs one offs(7) | C44: -4.14727088 | D44: -6.6 | E44: -19.87765 | F44: -30.314 | G44: -3.172 | H44: -2.174507 | I44: -1.566246 | J44: -63.649 | K44: -9.60330388 | L44: -4.2904095 | M44: -5.346507 | N44: -13.89371338
B45: Associates' income one-off | C45: 0 | D45: 0 | E45: 0 | F45: 25.8 | G45: 0 | H45: 0 | I45: 0 | J45: 0 | K45: 0 | L45: 0 | M45: 0 | N45: 0
B46: Tax normalization adjustment (8) | C46: 24.78874537 | D46: 27.85869025 | E46: -14.85478094 | F46: 8.368544593 | G46: 0 | H46: 64.55390525 | I46: 0 | J46: 0 | K46: =-K23+K22 -> 18.86023813 | L46: =-L23+L22 -> 1.244218755 | M46: =-M23+M22 -> 64.55390525 | N46: =-N23+N22 -> 20.10445688
B47: Reported net profit | C47: =SUM(C40:C46) -> 521.263 | D47: 92.462 | E47: 115.646 | F47: 169.562 | G47: 179.761 | H47: =SUM(H40:H46) -> 119.683 | I47: 277.379 | J47: 211.242 | K47: 233.132 | L47: 330.007 | M47: 299.444 | N47: 563.139
B49: AT1 coupon (mn) | C49: -13.125 | D49: -13.125 | E49: -13.125 | F49: -13.125 | G49: -13.125 | H49: -13.125 | I49: -13.125 | J49: -13.125 | K49: -13.125 | L49: -13.125 | M49: =G49+H49 -> -26.25 | N49: =K49+L49 -> -26.25
B50: Reported net profit adjusted for AT1 cpn (mn) | C50: =C47+C49 -> 508.138 | D50: =D47+D49 -> 79.337 | E50: =E47+E49 -> 102.521 | F50: =F47+F49 -> 156.437 | G50: =G47+G49 -> 166.636 | H50: =H47+H49 -> 106.558 | I50: =I47+I49 -> 264.254 | J50: =J47+J49 -> 198.117 | K50: =K47+K49 -> 220.007 | L50: 316.882 | M50: 273.194 | N50: 536.889
B51: Reported EPS adjusted | C51: =C50/(C53/1000000) -> 0.4063910111 | D51: =D50/(C53/1000000) -> 0.06345095948 | E51: =E50/(C53/1000000) -> 0.08199271231 | F51: =F50/(C53/1000000) -> 0.1251128445 | G51: =G50/(C53/1000000) -> 0.1332696483 | H51: =H50/(C53/1000000) -> 0.0852213638 | I51: =I50/(C53/1000000) -> 0.2113411125 | J51: =J50/(C53/1000000) -> 0.1584470517 | K51: =K50/(C53/1000000) -> 0.1759539085 | L51: =L50/(C53/1000000) -> 0.2534311474 | M51: =M50/(C53/1000000) -> 0.2184910121 | N51: =N50/(C53/1000000) -> 0.4293850559
B53: Outstanding number of shares (#) | C53: 1250367223
B54: * For simplification, all EPS figures are calculated with the current number of shares; normalized core and operating profits include tax expense in its totality
B56: (1) Q1, Q2, Q3.2022 net fee & rental income and general expenses have been restated to reflect the reclassification of fees paid to card services provider, which were previously included within general expenses to net fee income as an expense. Comparative information have been restated backwards for 2021 in order to align with the aforementioned changes
B57: (2) Q3.2023 impairments on other assets include small impact from Sunshine closing
B58: (3) Q3.2023 net trading result mainly derived from market making and other primary market activity
B59: (4) Other operating result includes dividend income
B60: (5) As of Q1.2024 normalized profits incorporate one-off items post 29% tax rate
B61: (6) Q3.2023 onwards inorganic impairments for loans include only losses on NPE sales transactions; Q4.2023 impairments relate with Monza NPE loan portfolio
B62: (7) Q3.2023 one-offs comprise €15mn reversal of talent retention accruals due to share buyback and €1mn VES costs booked in staff costs and €15.5mn extraordinary costs to mitigate impact from wildfires and extreme weather phenomena booked in G&A costs; Q4.2023 one-offs comprise €56mn VES costs, €4mn share buyback accruals expensed for talent retention and €4mn subsidy for low paid employees booked in staff costs. H1.2024 one-offs refer to VES costs
B63: (8) Normalized profits are calculated under an assumption of normalized tax rate. A projected effective corporate tax rate of 26% has been used for 2022 and 2023, based on Piraeus business plan assumptions for 2023. As of Q1.2024 normalized profits are calculated adjusting one-off items for the 29% tax rate

Sheet Balance sheet
N2: Back to Cover
B5: CONSOLIDATED BALANCE SHEET
B9: (million €) | C9: 2022-03-31 | D9: 2022-06-30 | E9: 2022-09-30 | F9: 31/12/2022(10) | G9: 2023-03-31 | H9: 2023-06-30 | I9: 2023-09-30 | J9: 2023-12-31 | K9: 2024-03-31 | L9: 2024-06-30 | N9: QoQ
B10: ASSETS
B11: 1. Cash and balances with central banks | C11: 17962.309 | D11: 17900.583 | E11: 18296.858 | F11: 9653.321 | G11: 9575.525 | H11: 10606.469 | I11: 12687.053 | J11: 10567.496 | K11: 11108.459 | L11: 8754.698 | N11: =L11/K11-1 -> -0.2118890658
B12: 2. Loans and advances to credit institutions | C12: 713.462 | D12: 764.02 | E12: 791.039 | F12: 1414.693309 | G12: 952.579 | H12: 725.865 | I12: 737.425 | J12: 1034.017 | K12: 1614.372 | L12: 1453.297 | N12: =L12/K12-1 -> -0.09977564031
B13: 3. Gross loans and advances to customers | C13: 37066.123 | D13: 36923.948 | E13: 37634.458 | F13: 38787.358 | G13: 36761.303 | H13: 36924.801 | I13: 37235.016 | J13: 38345.619 | K13: 37147.894 | L13: 38348.09 | N13: 0.03230858794
B14: 4. Cumulative provisions | C14: 2066.942 | D14: 1554.865 | E14: 1619.072 | F14: 1420.854 | G14: 1348.92 | H14: 1152.996 | I14: 1160.708 | J14: 818.958 | K14: 783.852 | L14: 742.88 | N14: -0.05227007139
B15: 5. Net loans | C15: 34999.181 | D15: 35369.083 | E15: 36015.386 | F15: 37366.504 | G15: 35412.383 | H15: 35771.805 | I15: 36074.308 | J15: 37526.661 | K15: 36364.042 | L15: 37605.21 | N15: 0.03413173926
B16: 6. Securities inc. derivatives | C16: 12726.203 | D16: 14168.24 | E16: 13902.302 | F16: 12691.62188 | G16: 15124.817 | H16: 16006.099 | I16: 16048.777 | J16: 14076.643 | K16: 14964.046 | L16: 15579.439 | N16: =L16/K16-1 -> 0.04112477334
B17: 7. Investments in associates | C17: 540.509 | D17: 534.074 | E17: 669.656 | F17: 1023.017 | G17: 1039.75 | H17: 1077.651 | I17: 1207.057 | J17: 1254.965 | K17: 1263.875 | L17: 1269.237 | N17: 0.004242508159
B18: 8. Goodwill | C18: 12.703 | D18: 12.701 | E18: 26.506 | F18: 26.884 | G18: 26.979 | H18: 26.934 | I18: 26.834 | J18: 26.149 | K18: 26.144 | L18: 26.141 | N18: -0.000114749082
B19: 9. Other intagible assets | C19: 252.414 | D19: 270.463 | E19: 272.971 | F19: 285.132 | G19: 286.298 | H19: 303.168 | I19: 305.418 | J19: 321.005 | K19: 320.041 | L19: 339.746 | N19: 0.06157023631
B20: 10. Property, plant and equipment | C20: 2234.352 | D20: 2302.94874 | E20: 2314.174 | F20: 2249.848265 | G20: 2279.135 | H20: 2500.199346 | I20: 2440.691606 | J20: 2489.335577 | K20: 2528.981792 | L20: 2600.539973 | N20: 0.0282952535
B21: 11. Deferred tax assets | C21: 6104.846 | D21: 6127.767 | E21: 6073.904 | F21: 5974.381 | G21: 5899.071 | H21: 5893.234 | I21: 5801.267 | J21: 5703.173 | K21: 5616.06 | L21: 5505.987 | N21: -0.01959968376
B22: 12. Other assets | C22: 3652.161 | D22: 3800.788894 | E22: 3821.595 | F22: 3553.545818 | G22: 3723.432 | H22: 3663.948 | I22: 3650.396 | J22: 3210.264 | K22: 3206.809 | L22: 3273.435 | N22: 0.02077641668
B23: 13. Assets from discontinued operations & held for sale (1,2,3,4,5,6,7,8,9,11) | C23: 297.892 | D23: 621.6877847 | E23: 471.678 | F23: 406.071 | G23: 359.916 | H23: 407.241 | I23: 279.658 | J23: 240.7 | K23: 237.604 | L23: 218.117 | N23: -0.08201461255
B24: 14. Total assets | C24: 79496.032 | D24: 81872.35642 | E24: 82656.068 | F24: 74645.01827 | G24: 74679.885 | H24: 76982.61335 | I24: 79258.88461 | J24: 76450.40858 | K24: 77250.43279 | L24: 76625.84797 | N24: =L24/K24-1 -> -0.008085195079
B26: LIABILITIES & EQUITY
B27: 15. Due to credit institutions | C27: 14843.166 | D27: 15405.651 | E27: 15455.851 | F27: 6185.034534 | G27: 6914.194 | H27: 7657.502 | I27: 8748.951 | J27: 4618.256 | K27: 6107.872 | L27: 3506.832 | N27: =L27/K27-1 -> -0.4258504435
B28: ECB | C28: 14500 | D28: 14500 | E28: 14400 | F28: 5500 | G28: 5500 | H28: 5500 | I28: 5500 | J28: 3500 | K28: 3500 | L28: 1000 | N28: =L28/K28-1 -> -0.7142857143
B29: Other | C29: =C27-C28 -> 343.166 | D29: =D27-D28 -> 905.651 | E29: =E27-E28 -> 1055.851 | F29: =F27-F28 -> 685.0345339 | G29: =G27-G28 -> 1414.194 | H29: =H27-H28 -> 2157.502 | I29: =I27-I28 -> 3248.951 | J29: =J27-J28 -> 1118.256 | K29: =K27-K28 -> 2607.872 | L29: 2506.832 | N29: -0.03874423285
B30: 16. Liabilities at FV through PL | C30: 0 | D30: 0 | E30: 0.097 | F30: 0.097 | G30: 0.097 | H30: 0.097 | I30: 0.097 | J30: 0.097 | K30: 0.097 | L30: 0.097 | N30: -
B31: 17. Derivative financial instruments | C31: 352.846 | D31: 774.539 | E31: 679.075 | F31: 410.1893079 | G31: 626.824 | H31: 632.132 | I31: 679.122 | J31: 295.393 | K31: 283.323 | L31: 296.519 | N31: =L31/K31-1 -> 0.04657581629
B32: 18. Due to customers | C32: 54853.94 | D32: 56079.063 | E32: 56732.552 | F32: 58371.917 | G32: 57173.915 | H32: 58381.488 | I32: 58663.074 | J32: 59566.655 | K32: 58590.698 | L32: 59757.434 | N32: =L32/K32-1 -> 0.01991333163
B33: 19. Debt securities and other borrowed funds | C33: 1900.231 | D33: 1883.566 | E33: 1906.095 | F33: 1786.289 | G33: 1783.144 | H33: 1773.746 | I33: 2308.146 | J33: 2825.115 | K33: 3002.399 | L33: 3428.429 | N33: 0.1418965301
B34: 20. Deferred tax liabilities | C34: 9.971 | D34: 9.918 | E34: 9.893 | F34: 9.936 | G34: 9.964 | H34: 9.192 | I34: 8.862 | J34: 9.337 | K34: 9.702 | L34: 9.561 | N34: -0.01453308596
B35: 21. Retirement benefit obligations | C35: 69.616 | D35: 66.42272806 | E35: 64.58 | F35: 55.177 | G35: 52.134 | H35: 49.935 | I35: 48.397 | J35: 52.415 | K35: 50.596 | L35: 49.275 | N35: -0.0261087833
B36: 22. Other liabilities | C36: 1249.205 | D36: 1412.086 | E36: 1453.903 | F36: 1245.721168 | G36: 1354.399 | H36: 1585.882 | I36: 1656.911 | J36: 1729.683 | K36: 1615.195 | L36: 1773.253 | N36: 0.09785691511
B37: 23. Liabilities from discontinued operations & held for sale (1,2,3,4,5,6,7,8,9,11) | C37: 28.037 | D37: 28.224 | E37: 0 | F37: 0 | G37: 0 | H37: 0 | I37: 0 | J37: 0 | K37: 0 | L37: 0 | N37: -
B38: 24. Total liabilities | C38: 73307.012 | D38: 75659.534 | E38: 76302.046 | F38: 68064.36101 | G38: 67914.671 | H38: 70089.974 | I38: 72113.56 | J38: 69096.951 | K38: 69659.882 | L38: 68821.4 | N38: =L38/K38-1 -> -0.01203679903
B39: 25. Shareholders' funds | C39: 5569.033 | D39: 5595.558 | E39: 5725.603 | F39: 5952.799 | G39: 6138.377 | H39: 6250.291 | I39: 6503.238 | J39: 6697.922 | K39: 6935.306 | L39: 7148.027 | N39: =L39/K39-1 -> 0.03067218663
B40: 26. Additional Tier I | C40: 600 | D40: 600 | E40: 600 | F40: 600 | G40: 600 | H40: 600 | I40: 600 | J40: 600 | K40: 600 | L40: 600 | N40: =L40/K40-1 -> 0
B41: 27. Non controlling Interests | C41: 19.987 | D41: 17.266 | E41: 28.422 | F41: 27.857 | G41: 26.838 | H41: 42.353 | I41: 42.086 | J41: 55.539 | K41: 55.247 | L41: 56.423 | N41: 0.02128622369
B42: 28. Total equity | C42: 6189.02 | D42: 6212.824 | E42: 6354.025 | F42: 6580.656 | G42: 6765.215 | H42: 6892.644 | I42: 7145.324 | J42: 7353.461 | K42: 7590.553 | L42: 7804.45 | N42: =L42/K42-1 -> 0.0281793698
B43: 29. Tangible equity | C43: =C42-C41-C40-C19-C18 -> 5303.916 | D43: =D42-D41-D40-D19-D18 -> 5312.394 | E43: =E42-E41-E40-E19-E18 -> 5426.126 | F43: =F42-F41-F40-F19-F18 -> 5640.783 | G43: =G42-G41-G40-G19-G18 -> 5825.1 | H43: =H42-H41-H40-H19-H18 -> 5920.189 | I43: =I42-I41-I40-I19-I18 -> 6170.986 | J43: =J42-J41-J40-J19-J18 -> 6350.768 | K43: =K42-K41-K40-K19-K18 -> 6589.121 | L43: 6782.14 | N43: =L43/K43-1 -> 0.02929358863
B44: 30. Total liabilities & equity | C44: 79496.032 | D44: 81872.358 | E44: 82656.071 | F44: 74645.01701 | G44: 74679.886 | H44: 76982.618 | I44: 79258.884 | J44: 76450.412 | K44: 77250.435 | L44: 76625.85 | N44: =L44/K44-1 -> -0.00808519719
B46: (1) For 31.03.2022 discontinued operations also include Sunshine Leasing NPE portfolio along with other corporate NPE tickets similarly categorized
B47: (2) For 30.06.2022 discontinued operations also include Sunrise 3 NPE loan portfolio, Solar NPE loan portfolio, Sunshine Leasing NPE portfolio along with other corporate NPE tickets similarly categorized
B48: (3) For 30.09.2022 discontinued operations have zeroed on the back of the loss of control over IMITHEA; figure includes Sunrise 3 NPE loan portfolio, Solar NPE loan portfolio, Sunshine Leasing NPE portfolio along with other corporate NPE tickets similarly categorized
B49: (4) For 31.12.2022 figure includes Sunrise 3 NPE loan portfolio, Solar NPE loan portfolio, Sunshine Leasing NPE portfolio along with other corporate NPE tickets similarly categorized
B50: (5) For 31.03.2023 figure includes Sunrise 3 NPE loan portfolio, Solar NPE loan portfolio, Sunshine Leasing NPE portfolio along with other corporate NPE tickets similarly categorized
B51: (6) For 30.06.2023 figure includes Sunrise 3 NPE loan portfolio, Solar NPE loan portfolio, Sunshine Leasing NPE portfolio, Delta NPE loan portfolio along with other corporate NPE tickets similarly categorized
B52: (7) For 30.09.2023 figure includes Sunrise 3 NPE loan portfolio, Solar NPE loan portfolio, Delta NPE loan portfolio along with other corporate NPE tickets similarly categorized
B53: (8) For 31.12.2023 figure includes Solar NPE loan portfolio, Delta NPE loan portfolio, Monza NPE loan portfolio along with other corporate NPE tickets similarly categorized
B54: (9) For 31.03.2024 figure includes Solar NPE loan portfolio, Delta NPE loan portfolio, Monza NPE loan portfolio along with other corporate NPE tickets similarly categorized
B55: (10) 31.12.2022 derivative financial instruments, other assets, other liabilities and total assets have been reclassified for comparability with 31.12.2023, and every following quarter, figures that reflect the offsetting of derivatives and the reclassification of accruals from other assets/liabilities to derivatives
B56: (11) For 31.06.2024 figure includes Solar NPE loan portfolio, Monza NPE loan portfolio along with other corporate NPE tickets similarly categorized

Sheet Analysis of selected BS items
L2: Back to Cover
B5: ANALYSIS OF SELECTED BALANCE SHEET ITEMS
B8: (million €)
B9: CONSOLIDATED LOANS (per customer type) | C9: 2022-03-31 | D9: 2022-06-30 | E9: 2022-09-30 | F9: 2022-12-31 | G9: 2023-03-31 | H9: 2023-06-30 | I9: 2023-09-30 | J9: 2023-12-31 | K9: 2024-03-31 | L9: 2024-06-30
B10: 1. Loans to corporate entities | C10: 21787.93011 | D10: 21824.11516 | E10: 22594.43848 | F10: 22421.12869 | G10: 22095.24784 | H10: 22702.93994 | I10: 23077.56666 | J10: 23295.77679 | K10: 23151.71088 | L10: 24361.20497
B11: 2. Seasonal OPEKEPE1 | F11: 1517.325567 | J11: 950.670316
B12: 3. Senior notes (HAPS securitizations) | C12: 6182 | D12: 6131.167831 | E12: 6108.781908 | F12: 6074.423942 | G12: 6034.044451 | H12: 5951.678019 | I12: 5900.835784 | J12: 5984.42364 | K12: 5902.695932 | L12: 5848.663915
B13: 4. Mortgage loans | C13: 7114.71612 | D13: 6984.714555 | E13: 6944.80732 | F13: 6879.443845 | G13: 6756.481908 | H13: 6518.346134 | I13: 6475.395602 | J13: 6453.715839 | K13: 6424.850462 | L13: 6419.897051
B14: 5. Consumer loans | C14: 1981.476942 | D14: 1983.950088 | E14: 1986.430287 | F14: 1895.035972 | G14: 1875.528453 | H14: 1751.836632 | I14: 1781.217874 | J14: 1661.032565 | K14: 1668.636293 | L14: 1718.324532
B15: 6. Loans to Individuals | C15: 9096.193062 | D15: 8968.664643 | E15: 8931.237607 | F15: 8774.479817 | G15: 8632.010361 | H15: 8270.182766 | I15: 8256.613476 | J15: 8114.748404 | K15: 8093.486755 | L15: 8138.221583
B16: 7. Total gross loans to customers | C16: 37066.123 | D16: 36923.948 | E16: 37634.458 | F16: 38787.358 | G16: 36761.303 | H16: 36924.80073 | I16: 37235.01592 | J16: 38345.61915 | K16: 37147.89357 | L16: 38348.09047
B18: Composition
B19: 1. Loans to corporate entities | C19: =+C10/C$16 -> 0.5878124916 | D19: 0.5910558415 | E19: =+E10/E$16 -> 0.6003657202 | F19: 0.5780524854 | G19: =+G10/G$16 -> 0.6010463732 | H19: =+H10/H$16 -> 0.6148425853 | I19: =+I10/I$16 -> 0.6197813023 | J19: =+J10/J$16 -> 0.607521206 | K19: =+K10/K$16 -> 0.6232307853 | L19: =+L10/L$16 -> 0.6352651377
B20: 2. Seasonal OPEKEPE1 | C20: 0 | D20: 0 | E20: =+E11/E$16 -> 0 | F20: 0.03911907501 | G20: 0 | H20: 0 | I20: =+I11/I$16 -> 0 | J20: =+J11/J$16 -> 0.02479214933 | K20: =+K11/K$16 -> 0 | L20: 0
B21: 3. Senior notes (HAPS securitizations) | C21: =+C12/C$16 -> 0.1667830218 | D21: 0.1660485447 | E21: =+E12/E$16 -> 0.1623188491 | F21: 0.156608345 | G21: 0.1641412017 | H21: 0.1611837546 | I21: =+I12/I$16 -> 0.1584754468 | J21: =+J12/J$16 -> 0.1560653804 | K21: =+K12/K$16 -> 0.1588971908 | L21: 0.1525151277
B22: 4. Mortgage loans | C22: 0.1919465955 | D22: 0.1891648898 | E22: =+E13/E$16 -> 0.1845332094 | F22: 0.177363043 | G22: 0.1837933195 | H22: =+H13/H$16 -> 0.1765302996 | I22: =+I13/I$16 -> 0.1739060785 | J22: =+J13/J$16 -> 0.1683038632 | K22: =+K13/K$16 -> 0.1729532914 | L22: 0.1674111272
B23: 5. Consumer loans | C23: 0.05345789583 | D23: 0.05373071395 | E23: =+E14/E$16 -> 0.0527822212 | F23: 0.04885705214 | G23: 0.05101909617 | H23: =+H14/H$16 -> 0.04744336049 | I23: =+I14/I$16 -> 0.04783717235 | J23: =+J14/J$16 -> 0.0433174011 | K23: =+K14/K$16 -> 0.04491873247 | L23: 0.04480860744
B24: 6. Loans to individuals | C24: 0.2454044914 | D24: 0.2428956038 | E24: =+E15/E$16 -> 0.2373154306 | F24: 0.2262200951 | G24: 0.2348124157 | H24: =+H15/H$16 -> 0.2239736601 | I24: =+I15/I$16 -> 0.2217432509 | J24: =+J15/J$16 -> 0.2116212643 | K24: =+K15/K$16 -> 0.2178720239 | L24: 0.2122197346
B25: 7. Total gross loans to customers | C25: 1 | D25: 1 | E25: =+E16/E$16 -> 1 | F25: 1 | G25: 1 | H25: =+H16/H$16 -> 1 | I25: =+I16/I$16 -> 1 | J25: =+J16/J$16 -> 1 | K25: =+K16/K$16 -> 1 | L25: 1
B28: SECURITIES (debt & equity securities) | C28: 2022-03-31 | D28: 2022-06-30 | E28: 2022-09-30 | F28: 2022-12-31 | G28: 2023-03-31 | H28: 2023-06-30 | I28: 2023-09-30 | J28: 2023-12-31 | K28: 2024-03-31 | L28: 2024-06-30
B29: 1. Amortised cost | C29: =SUM(C30:C33) -> 9013.430503 | D29: =SUM(D30:D33) -> 9500.613216 | E29: 9773.154177 | F29: 10843.84936 | G29: 10920.92649 | H29: 10916.1339 | I29: 10709.79497 | J29: 11659.12991 | K29: =SUM(K30:K33) -> 12419.75231 | L29: =SUM(L30:L33) -> 13482.55645
B30: 2. GGBs | C30: 6597.573978 | D30: 7037.424343 | E30: 7247.031497 | F30: 7513.830098 | G30: 7472.916017 | H30: 7456.644789 | I30: 7166.916531 | J30: 7708.547521 | K30: 8468.586695 | L30: 8713.660592
B31: 3. G-TBills | C31: 0 | D31: 0 | E31: 2.97355 | F31: 2.979 | G31: 3.461315 | H31: 3.975497 | I31: 1.965157 | J31: 3.939005 | K31: 5.449411 | L31: 6.914025
B32: 4. EU Sovereign | C32: 2400.702785 | D32: 2447.900994 | E32: 2476.968425 | F32: 2459.294432 | G32: 2469.653844 | H32: 2470.091623 | I32: 2425.052745 | J32: 2498.693511 | K32: 2507.533181 | L32: 2499.765598
B33: 5. Other Bonds | C33: 15.15374 | D33: 15.287879 | E33: 46.180705 | F33: 867.745831 | G33: 974.895312 | H33: 985.421996 | I33: 1115.86054 | J33: 1447.949873 | K33: 1438.183021 | L33: 2262.21624
B34: 6. FVTOCI | C34: =SUM(C35:C39) -> 1723.771474 | D34: =SUM(D35:D39) -> 1811.109778 | E34: 1407.513078 | F34: =SUM(F35:F39) -> 896.90577 | G34: 1120.007761 | H34: 1275.706523 | I34: 1571.234019 | J34: 1383.161377 | K34: =SUM(K35:K39) -> 1154.638927 | L34: =SUM(L35:L39) -> 750.346987
B35: 7. GGBs | C35: 551.739656 | D35: 303.484786 | E35: 265.822348 | F35: 237.420774 | G35: 386.572161 | H35: 486.649113 | I35: 571.397052 | J35: 630.314191 | K35: 617.683312 | L35: 513.664776
B36: 8. G-TBills | C36: 479.347041 | D36: 812.017594 | E36: 469.596364 | F36: 557.600553 | G36: 627.828798 | H36: 732.159902 | I36: 945.836294 | J36: 704.232556 | K36: 482.613891 | L36: 151.759398
B37: 9. EU Sovereign | C37: 14.928841 | D37: 8.387638 | E37: 2.416886 | F37: 0.894311 | G37: 0.873092 | H37: 0.903614 | I37: 0 | J37: 0 | K37: 0 | L37: 29.6172
B38: 10. Other Bonds | C38: 611.96117 | D38: 624.505238 | E38: 609.604228 | F38: 0 | G38: 0 | H38: 0 | I38: 0 | J38: 0 | K38: 0 | L38: 0
B39: 11. Equity | C39: 65.794766 | D39: 62.714522 | E39: 60.073252 | F39: 100.990132 | G39: 104.73371 | H39: 55.993894 | I39: 54.000673 | J39: 48.61463 | K39: 54.341724 | L39: 55.305613
B40: 12. FVTPL | C40: =SUM(C41:C45) -> 1020.674588 | D40: =SUM(D41:D45) -> 956.566345 | E40: 922.503618 | F40: 730.39193 | G40: 1013.445323 | H40: 1535.36138 | I40: =SUM(I41:I45) -> 1287.784566 | J40: 843.396622 | K40: =SUM(K41:K45) -> 1204.622351 | L40: =SUM(L41:L45) -> 1202.830653
B41: 13. GGBs | C41: 216.251656 | D41: 198.868845 | E41: 194.556399 | F41: 87.369053 | G41: 100.578864 | H41: 110.675015 | I41: 291.082835 | J41: 285.994975 | K41: 393.013116 | L41: 387.055542
B42: 14. G-TBills | C42: 113.085269 | D42: 135.916379 | E42: 105.584046 | F42: 66.692538 | G42: 75.046775 | H42: 90.355297 | I42: 92.826798 | J42: 189.057555 | K42: 176.291104 | L42: 174.851322
B43: 15. EU Sovereign | C43: 434.257345 | D43: 389.769043 | E43: 406.255268 | F43: 370.350837 | G43: 655.209567 | H43: 1108.936017 | I43: 644.08696 | J43: 97.489563 | K43: 310.965221 | L43: 336.246921
B44: 16. Other Bonds | C44: 72.865583 | D44: 59.690236 | E44: 46.646952 | F44: 48.599516 | G44: 12.447543 | H44: 34.237417 | I44: 76.994903 | J44: 73.962279 | K44: 82.248054 | L44: 66.852252
B45: 17. Equity | C45: 184.214735 | D45: 172.321842 | E45: 169.460953 | F45: 157.379986 | G45: 170.162574 | H45: 191.157634 | I45: 182.79307 | J45: 196.89225 | K45: 242.104856 | L45: 237.824616
B46: 18. Derivative financial instruments | C46: 968.327 | D46: 1899.951 | E46: 1799.131 | F46: 220.4748824 | G46: 2070.438 | H46: 2278.897 | I46: 2479.963 | J46: 190.956 | K46: 185.033 | L46: 143.705
B47: 19. Total securities | C47: =C29+C34+C40+C46 -> 12726.20356 | D47: =D29+D34+D40+D46 -> 14168.24034 | E47: =E29+E34+E40+E46 -> 13902.30187 | F47: =F29+F34+F40+F46 -> 12691.62194 | G47: =G29+G34+G40+G46 -> 15124.81757 | H47: =H29+H34+H40+H46 -> 16006.09881 | I47: =I29+I34+I40+I46 -> 16048.77656 | J47: 14076.64391 | K47: =K29+K34+K40+K46 -> 14964.04659 | L47: =L29+L34+L40+L46 -> 15579.43909
B50: PROPERTY PORTFOLIO3 | C50: 2022-03-31 | D50: 2022-06-30 | E50: 2022-09-30 | F50: 2022-12-31 | G50: 2023-03-31 | H50: 2023-06-30 | I50: 2023-09-30 | J50: 2023-12-31 | K50: 2024-03-31 | L50: 2024-06-30
B51: 1. Investment property | C51: 1306.977 | D51: 1381.124162 | E51: 1471.594 | F51: 1522.261 | G51: 1521.57 | H51: 1753.405 | I51: 1754.381 | J51: 1756.961 | K51: 1798.298 | L51: 1801.868
B52: 2. Inventory property | C52: 1175.689 | D52: 1160.142 | E52: 1183.82 | F52: 1259.723 | G52: 1262.514 | H52: 1195.688 | I52: 1202.365 | J52: 1167.282 | K52: 1175.736 | L52: 1171.664
B53: 3. Own property | C53: 727.5161449 | D53: 719.754567 | E53: 638.6617362 | F53: 517.9606951 | G53: 522.4741568 | H53: 512.2404389 | I53: 480.6653952 | J53: 514.9689406 | K53: 524.211408 | L53: 574.4533788
B54: 4. Total property portfolio | C54: =SUM(C51:C53) -> 3210.182145 | D54: =SUM(D51:D53) -> 3261.020729 | E54: 3294.075736 | F54: 3299.944695 | G54: 3306.558157 | H54: 3461.333439 | I54: 3437.411395 | J54: 3439.211941 | K54: 3498.245408 | L54: 3547.985379
B57: CONSOLIDATED CUSTOMER DEPOSITS (per product type) | C57: 2022-03-31 | D57: 2022-06-30 | E57: 2022-09-30 | F57: 2022-12-31 | G57: 2023-03-31 | H57: 2023-06-30 | I57: 2023-09-30 | J57: 2023-12-31 | K57: 2024-03-31 | L57: 2024-06-30
B58: 1. Savings | C58: 24506.80432 | D58: 24515.16057 | E58: 24730.94941 | F58: 25795.14191 | G58: 24277.18108 | H58: 23702.75001 | I58: 23350.97135 | J58: 24184.43846 | K58: 23527.741 | L58: 23467.17282
B59: 2. Sight deposits and other deposits | C59: 20576.45889 | D59: 22174.07582 | E59: 22289.72196 | F59: 22246.43562 | G59: 21038.98668 | H59: 21165.67594 | I59: 21446.3296 | J59: 21876.78346 | K59: 21755.95505 | L59: 22747.63345
B60: 3. Term deposits, repos | C60: 9770.676472 | D60: 9389.826297 | E60: 9711.880366 | F60: 10330.33985 | G60: 11857.74762 | H60: 13513.06189 | I60: 13865.77339 | J60: 13505.43338 | K60: 13307.00179 | L60: 13542.62802
B61: 4. Total customer deposits | C61: =C58+C59+C60 -> 54853.93969 | D61: 56079.06268 | E61: 56732.55173 | F61: 58371.91738 | G61: =G58+G59+G60 -> 57173.91539 | H61: =H58+H59+H60 -> 58381.48784 | I61: =I58+I59+I60 -> 58663.07434 | J61: =J58+J59+J60 -> 59566.65529 | K61: =K58+K59+K60 -> 58590.69783 | L61: =L58+L59+L60 -> 59757.43429
B63: Composition
B64: 1. Savings | C64: =+C58/C$61 -> 0.4467647075 | D64: 0.4371535364 | E64: =+E58/E$61 -> 0.4359216827 | F64: 0.4419101353 | G64: 0.4246198799 | H64: 0.4059977038 | I64: 0.3980522947 | J64: =+J58/J$61 -> 0.4060063191 | K64: =+K58/K$61 -> 0.4015610305 | L64: 0.3927071686
B65: 2. Sight deposits and other deposits | C65: 0.3751136019 | D65: 0.3954073901 | E65: =+E59/E$61 -> 0.3928912286 | F65: 0.3811153826 | G65: =+G59/G$61 -> 0.3679822615 | H65: =+H59/H$61 -> 0.3625408794 | I65: =+I59/I$61 -> 0.3655848222 | J65: =+J59/J$61 -> 0.367265601 | K65: =+K59/K$61 -> 0.371320975 | L65: 0.3806661668
B66: 3. Time deposits, repos | C66: 0.1781216906 | D66: 0.1674390735 | E66: =+E60/E$61 -> 0.1711870887 | F66: 0.1769744821 | G66: =+G60/G$61 -> 0.2073978586 | H66: =+H60/H$61 -> 0.2314614168 | I66: =+I60/I$61 -> 0.2363628831 | J66: =+J60/J$61 -> 0.2267280798 | K66: =+K60/K$61 -> 0.2271179945 | L66: 0.2266266646
B67: 4. Total customer deposits | C67: =+C64+C65+C66 -> 1 | D67: =+D64+D65+D66 -> 1 | E67: =+E64+E65+E66 -> 1 | F67: 1 | G67: 1 | H67: 1 | I67: 1 | J67: =+J64+J65+J66 -> 1 | K67: =+K64+K65+K66 -> 1 | L67: 1
B70: CUSTOMER FUNDS | C70: 2022-03-31 | D70: 2022-06-30 | E70: 2022-09-30 | F70: 2022-12-31 | G70: 2023-03-31 | H70: 2023-06-30 | I70: 2023-09-30 | J70: 2023-12-31 | K70: 2024-03-31 | L70: 2024-06-30
B71: 1. Customer funds | C71: =C72+C73 -> 54853.93969 | D71: 56079.06268 | E71: 56732.55173 | F71: 58371.91738 | G71: 57173.91539 | H71: =H72+H73 -> 58381.48784 | I71: =I72+I73 -> 58663.07434 | J71: =J72+J73 -> 59566.65529 | K71: =K72+K73 -> 58590.69783 | L71: =L72+L73 -> 59757.43429
B72: 2. Saving and sight deposits | C72: 45083.26321 | D72: 46689.23638 | E72: 47020.67137 | F72: 48041.57754 | G72: 45316.16777 | H72: 44868.42595 | I72: 44797.30096 | J72: 46061.22192 | K72: 45283.69605 | L72: 46214.80627
B73: 3. Time deposits | C73: 9770.676472 | D73: 9389.826297 | E73: 9711.880366 | F73: 10330.33985 | G73: 11857.74762 | H73: 13513.06189 | I73: 13865.77339 | J73: 13505.43338 | K73: 13307.00179 | L73: 13542.62802
B74: 4. Assets under management2 | C74: =C75+C76+C77 -> 6696.6 | D74: =D75+D76+D77 -> 6516.1 | E74: 6425 | F74: 6938.49 | G74: 7554 | H74: 8220 | I74: 8512 | J74: =J75+J76+J77 -> 9311 | K74: =K75+K76+K77 -> 10037 | L74: =L75+L76+L77 -> 10427
B75: 5. Mutual funds | C75: 1894 | D75: 1790 | E75: 1741 | F75: 1966 | G75: 2384 | H75: 2574 | I75: 2685 | J75: 3143 | K75: 3507 | L75: 3891
B76: 6. Piraeus Securities | C76: 1182 | D76: 1120 | E76: 1190 | F76: 1291 | G76: 1333 | H76: 1600 | I76: 1686 | J76: 1811 | K76: 1975 | L76: 1878
B77: 7. Private & institutional portfolios | C77: 3620.6 | D77: 3606.1 | E77: 3494 | F77: 3681.49 | G77: 3837 | H77: 4046 | I77: 4141 | J77: 4357 | K77: 4555 | L77: 4658
B78: 8. Total customer assets | C78: =C71+C74 -> 61550.53969 | D78: =D71+D74 -> 62595.16268 | E78: =E71+E74 -> 63157.55173 | F78: =F71+F74 -> 65310.40738 | G78: =G71+G74 -> 64727.91539 | H78: =H71+H74 -> 66601.48784 | I78: =I71+I74 -> 67175.07434 | J78: =J71+J74 -> 68877.65529 | K78: =K71+K74 -> 68627.69783 | L78: =L71+L74 -> 70184.43429
B80: (1) OPEKEPE relates to a seasonal funding facility to Greek farmers (EU subsidized bridge financing); the loan is granted close to year end and is repaid early next year
B81: (2) Assets under management include MFMC assets, Private Banking assets, Brokerage and Custody. Iolcus is included as at 30 March 2022
B82: (3) Inventory property is included in the "Other assets" line in IFRS accounts

Sheet PL
L2: Back to Cover
B5: CONSOLIDATED P&L
B9: (million €) | C9: Q1 2022 | D9: Q2 2022 | E9: Q3 2022 | F9: Q4 2022 | G9: Q1 2023 | H9: Q2 2023 | I9: Q3 2023 | J9: Q4 2023 | K9: Q1 2024 | L9: Q2 2024
B10: Net interest income | C10: 285.895 | D10: 305.568 | E10: 330.592 | F10: 430.647 | G10: 446.866 | H10: 487.8 | I10: 531.351 | J10: 536.645 | K10: 517.629 | L10: 527.558
B11: Net fee and commission income (1) | C11: 100.747032 | D11: 105.0979823 | E11: 107.8043056 | F11: 107.34068 | G11: 104.691 | H11: 120.484 | I11: 120.307 | J11: 122.616 | K11: 125.373 | L11: 159.353
B12: Rental income and income from non-banking activities | C12: 11.995 | D12: 15.875 | E12: 17.513 | F12: 18.487 | G12: 16.956 | H12: 20.922 | I12: 19.67 | J12: 20.99 | K12: 19.947 | L12: 19.886
B13: Core income | C13: =C11+C10+C12 -> 398.637032 | D13: 426.5409823 | E13: =E11+E10+E12 -> 455.9093056 | F13: 556.47468 | G13: 568.513 | H13: 629.206 | I13: 671.328 | J13: =J11+J10+J12 -> 680.251 | K13: =K11+K10+K12 -> 662.949 | L13: 706.797
B14: Net trading result (2) | C14: 585.389 | D14: 67.6 | E14: 64.161 | F14: -3.63 | G14: 9.754 | H14: 29.242 | I14: -7.895 | J14: 31.995 | K14: -4.427 | L14: 7.47
B15: Other operating result | C15: -2.361 | D15: 16.709 | E15: -6.805 | F15: 23.198 | G15: -1.48 | H15: 3.53 | I15: -10.245 | J15: 9.726 | K15: -66.651 | L15: 11.755
B16: Total net revenues | C16: =C15+C10+C11+C12+C14 -> 981.665032 | D16: 510.8499823 | E16: 513.2653056 | F16: 576.04268 | G16: 576.787 | H16: =H15+H10+H11+H12+H14 -> 661.978 | I16: =I15+I10+I11+I12+I14 -> 653.188 | J16: =J15+J10+J11+J12+J14 -> 721.972 | K16: =K15+K10+K11+K12+K14 -> 591.871 | L16: =L15+L10+L11+L12+L14 -> 726.022
B17: of which acquiring fees (3) | C17: 7.02271175 | D17: -0.5933471 | E17: -0.10188484 | F17: -0.67009459 | G17: 0 | H17: 0 | I17: 0 | J17: 0 | K17: 0 | L17: 0
B18: of which one-off | C18: 510.7 | D18: 109.277 | E18: 52 | F18: 0 | G18: 0 | H18: 0 | I18: 0 | J18: 0 | K18: -43.292 | L18: 0
B19: Staff costs | C19: 91.201 | D19: 101.155 | E19: 121.266 | F19: 131.956 | G19: 96.719 | H19: 96.57 | I19: 80.358 | J19: 168.495 | K19: 100.868 | L19: 100.802
B20: Administrative expenses (1) | C20: 81.31903205 | D20: 87.15198231 | E20: 85.18530565 | F20: 83.88267999 | G20: 83.157 | H20: 78.429 | I20: 89.208 | J20: 64.235 | K20: 72.946 | L20: 73.255
B21: Depreciation and amortization | C21: 29.592 | D21: 24.891 | E21: 25.213 | F21: 25.965 | G21: 26.147 | H21: 26.212 | I21: 26.485 | J21: 27.078 | K21: 28.615 | L21: 29.194
B22: Operating cost | C22: =C21+C20+C19 -> 202.112032 | D22: 213.1979823 | E22: 231.6643056 | F22: 241.80368 | G22: =G21+G20+G19 -> 206.023 | H22: =H21+H20+H19 -> 201.211 | I22: =I21+I20+I19 -> 196.051 | J22: =J21+J20+J19 -> 259.808 | K22: =K21+K20+K19 -> 202.429 | L22: =L21+L20+L19 -> 203.251
B23: of which one-off | C23: 4.14727088 | D23: 6.6 | E23: 19.87765 | F23: 30.314 | G23: 3.172 | H23: 2.174507 | I23: 1.566246 | J23: 63.649 | K23: 9.60330388 | L23: 4.2904095
B25: Profit before tax & provisions | C25: 779.553 | D25: 297.652 | E25: 281.601 | F25: 334.239 | G25: 370.764 | H25: 460.767 | I25: 457.137 | J25: 462.164 | K25: 389.442 | L25: 522.771
B27: Share of profit of associates | C27: -4.425 | D27: -4.999 | E27: 0.277 | F27: 38.04 | G27: -10.639 | H27: -11.848 | I27: 15.715 | J27: -8.448 | K27: 22.515 | L27: -12.048
B28: of which one-off | C28: 0 | D28: 0 | E28: 0 | F28: 25.8 | G28: 0 | H28: 0 | I28: 0 | J28: 0 | K28: 0 | L28: 0
B30: Impairment losses on loans | C30: 229.729 | D30: 190.241 | E30: 91.523 | F30: 103.126 | G30: 95.394 | H30: 283.028 | I30: 75.677 | J30: 104.504 | K30: 58.474 | L30: 43.261
B31: o/w underlying | C31: 44.036209 | D31: 45.598 | E31: 44.685 | F31: 17.424 | G31: 35.677 | H31: 68.96647572 | I31: 47.153 | J31: 24.976 | K31: 15.423 | L31: 19.858
B32: o/w inorganic (losses on NPE sales)(4) | C32: 151.6 | D32: 117.35 | E32: 18.381 | F32: 33.1 | G32: 20.761 | H32: 180.799114 | I32: 0 | J32: 51.51 | K32: 12.14 | L32: 0
B33: o/w servicing fees | C33: 29.140057 | D33: 21.293 | E33: 19.511053 | F33: 39.05396595 | G33: 26.088285 | H33: 20.32568855 | I33: 17.27913315 | J33: 16.85273756 | K33: 20.556513 | L33: 14.783
B34: o/w credit protection costs | C34: 4.952734 | D34: 6 | E34: 8.945947 | F34: 13.54803405 | G34: 12.867715 | H34: 12.93672172 | I34: 11.24486685 | J34: 11.16526244 | K34: 10.354487 | L34: 8.62
B35: Other impairment (5) | C35: 3.313 | D35: 9.418 | E35: 19.057 | F35: 38.635 | G35: 10.359 | H35: 32.141 | I35: 17.819 | J35: 38.191 | K35: 28.539 | L35: 15.302
B36: Profit before Tax | C36: 542.086 | D36: 92.994 | E36: 171.298 | F36: 230.518 | G36: 254.372 | H36: 133.75 | I36: 379.356 | J36: 311.021 | K36: 324.944 | L36: 452.16
B37: Income tax expense | C37: 22.04 | D37: 0.289 | E37: 55.846 | F37: 61.52 | G37: 75.64 | H37: 14.627 | I37: 102.388 | J37: 99.455 | K37: 91.998 | L37: 120.983
B38: Normalized Income tax expense(6) | C38: 46.82874537 | D38: 28.14769025 | E38: 40.99121906 | F38: 69.88854459 | G38: 75.64 | H38: 79.18090525 | I38: 102.388 | J38: 99.455 | K38: 110.8582381 | L38: 122.2272188
B39: Non controlling Interests | C39: -1.217 | D39: 0.243 | E39: -0.194 | F39: -0.564 | G39: -1.029 | H39: -0.56 | I39: -0.411 | J39: 0.324 | K39: -0.186 | L39: 1.17
B40: Net profit / (Loss) attributable to shareholders | C40: 521.263 | D40: 92.462 | E40: 115.646 | F40: 169.562 | G40: 179.761 | H40: 119.683 | I40: 277.379 | J40: 211.242 | K40: 233.132 | L40: 330.007
B41: Reported EPS adjusted for AT1 | C41: =+(C40-52.5/4)/1250.367223 -> 0.4063910111 | D41: 0.06345095948 | E41: 0.08199271231 | F41: =+(F40-52.5/4)/1250.367223 -> 0.1251128445 | G41: =+(G40-52.5/4)/1250.367223 -> 0.1332696483 | H41: =+(H40-52.5/4)/1250.367223 -> 0.0852213638 | I41: =+(I40-52.5/4)/1250.367223 -> 0.2113411125 | J41: =+(J40-52.5/4)/1250.367223 -> 0.1584470517 | K41: =+(K40-52.5/4)/1250.367223 -> 0.1759539085 | L41: =+(L40-52.5/4)/1250.367223 -> 0.2534311474
B42: Net Profit / (Loss) attributable to shareholders from discontinued operations | C42: -0.847 | D42: -0.489 | E42: 52.72 | F42: -0.822 | G42: 0 | H42: 0 | I42: 0 | J42: 0 | K42: 0 | L42: 0
B43: Non controlling interests from discontinued operations | C43: 0 | D43: 0 | E43: 0 | F43: 0 | G43: 0 | H43: 0 | I43: 0 | J43: 0 | K43: 0 | L43: 0
B45: Core operating profit | C45: =+C40+C32+C23-C15-C17-C14+C37-C38 -> 62.17081376 | D45: =+D40+D32+D23-D15-D17-D14+D37-D38 -> 104.8376569 | E45: 111.5053158 | F45: =+F40+F32+F23-F15-F17-F14+F37-F38-F28 -> 179.90955 | G45: =+G40+G32+G23-G15-G17-G14 -> 195.42 | H45: =+H40+H32+H23-H15-H17-H28-H38+H37-H14 -> 205.3307158 | I45: =+I40+I32+I23-I15-I17-I28-I38+I37-I14 -> 297.085246 | J45: =+J40+J32+J23-J15-J17-J28-J38+J37-J14 -> 284.68 | K45: =+K40+K32+K23-K15-K17-K28-K38+K37-K14 -> 307.0930658 | L45: =+L40+L32+L23-L15-L17-L28-L38+L37-L14 -> 313.8281907
B46: Core EPS adj for AT1 | C46: =+(C45-52.5/4)/1250.367223 -> 0.03922512751 | D46: 0.07334857726 | E46: 0.07868113781 | F46: =+(F45-52.5/4)/1250.367223 -> 0.1333884534 | G46: =+(G45-52.5/4)/1250.367223 -> 0.1457931691 | H46: =+(H45-52.5/4)/1250.367223 -> 0.1537194132 | I46: =+(I45-52.5/4)/1250.367223 -> 0.2271014793 | J46: =+(J45-52.5/4)/1250.367223 -> 0.2171801971 | K46: =+(K45-52.5/4)/1250.367223 -> 0.2351053837 | L46: 0.2404919013
B47: Normalized operating profit(7) | C47: =+C45+C15-C18+C14 -> 134.4988138 | D47: 79.86965685 | E47: 116.8613158 | F47: 199.47755 | G47: 203.694 | H47: =+H45+H15-H18+H14 -> 238.1027158 | I47: =+I45+I15-I18+I14 -> 278.945246 | J47: =+J45+J15-J18+J14 -> 326.401 | K47: =+K45+K15-K18+K14 -> 279.3070658 | L47: =+L45+L15-L18+L14 -> 333.0531907
B48: Normalized EPS adj for AT1 | C48: =+(C47-52.5/4)/1250.367223 -> 0.09707053378 | D48: =+(D47-52.5/4)/1250.367223 -> 0.05338004358 | E48: 0.08296467939 | F48: =+(F47-52.5/4)/1250.367223 -> 0.1490382558 | G48: 0.1524104251 | H48: 0.1799293133 | I48: 0.2125937414 | J48: 0.2505471946 | K48: =+(K47-52.5/4)/1250.367223 -> 0.2128831121 | L48: 0.2558673843
B50: (1) Q1, Q2, Q3.22 net fee & rental income and general expenses have been restated to reflect the reclassification of €6.5mn relating to fees paid to card services provider, which were previously included within general expenses to net fee income as an expense. Comparative information have been restated backwards for 2021 in order to align with the aforementioned changes; Q3.23 general expenses include €16mn extraordinary costs to mitigate the impact of extreme weather phenomena
B51: (2) Q3.23 net trading result mainly derived from market making and other primary market activity
B52: (3) Acquiring fees for 2022 have been classified as one-off for comparability purposes
B53: (4) Q3.2023 onwards inorganic impairments for loans include only losses on NPE sales transactions
B54: (5) Q3.2023 impairments on other assets include small impact from Sunshine closing
B55: (6) Normalized profits are calculated under an assumption of normalized tax rate. A projected effective corporate tax rate of 26% has been used for 2022 and 2023, based on Piraeus business plan assumptions for 2023
B56: (7) As of Q1.2024 normalized profits are calculated adjusting one-off items for the 29% tax rate
B57: * CORE: excluding one off elements and trading/other income; NORMALIZED: excluding one off elements and including normalized/recurring trading/other income

Sheet NII
L2: Back to Cover
B5: NET INTEREST INCOME
B9: (million €) | C9: Q1 2022 | D9: Q2 2022 | E9: Q3 2022 | F9: Q4 2022 | G9: Q1 2023 | H9: Q2 2023 | I9: Q3 2023 | J9: Q4 2023 | K9: Q1 2024 | L9: Q2 2024
B10: Net loans | C10: 276.3128424 | D10: 283.984852 | E10: 298.476187 | F10: 356.4091921 | G10: 410.647 | H10: 454.392 | I10: 497.474 | J10: 511.307 | K10: 502.9794799 | L10: 516.8243258
B11: o/w PEs | C11: 236.7444361 | D11: 244.635939 | E11: 271.3177949 | F11: 333.0084808 | G11: 383.600116 | H11: 427.6759695 | I11: 472.2133183 | J11: 488.0945722 | K11: 484.8680112 | L11: 500.3898256
B12: o/w NPEs | C12: 39.56840631 | D12: 39.34891299 | E12: 27.15839214 | F12: 23.40071134 | G12: 27.04688395 | H12: 26.71603051 | I12: 25.26068171 | J12: 23.21242781 | K12: 18.11146867 | L12: 16.43450019
B13: Fixed income securities | C13: 38.99368068 | D13: 47.4616571 | E13: 63.70215254 | F13: 71.40390863 | G13: 77.10452746 | H13: 72.45608147 | I13: 79.94187721 | J13: 87.33857052 | K13: 88.54193992 | L13: 106.3036287
B14: IRS asset side | C14: 29.97794031 | D14: 28.64956618 | E14: 25.795956 | F14: 13.76203029 | G14: 28.62022961 | H14: 53.40757203 | I14: 63.12326274 | J14: 63.81770095 | K14: 70.26477889 | L14: 63.44724219
B15: Other assets | C15: 40.16690925 | D15: 42.63453013 | E15: 16.12566308 | F15: 57.4695097 | G15: 64.8016495 | H15: 89.9461821 | I15: 120.415686 | J15: 124.5791894 | K15: 119.0223414 | L15: 114.1810078
B16: Interest income | C16: =C10+C13+C15+C14 -> 385.4513726 | D16: 402.7306054 | E16: 404.0999586 | F16: 499.0446408 | G16: 581.1734066 | H16: =H10+H13+H15+H14 -> 670.2018356 | I16: =I10+I13+I15+I14 -> 760.954826 | J16: =J10+J13+J15+J14 -> 787.0424609 | K16: =K10+K13+K15+K14 -> 780.8085401 | L16: =L10+L13+L15+L14 -> 800.7562045
B18: Customer deposits | C18: 7.64338446 | D18: 8.98353679 | E18: 12.21932897 | F18: 19.87732892 | G18: 32.77246207 | H18: 52.68634844 | I18: 70.28895629 | J18: 76.45771981 | K18: 78.35640967 | L18: 80.44287622
B19: Due to banks including TLTRO | C19: 2.5174831 | D19: 4.61894162 | E19: 5.2057798 | F19: 15.4821627 | G19: 45.53305497 | H19: 67.32973468 | I19: 83.90490514 | J19: 88.77621909 | K19: 75.34943147 | L19: 74.85325868
B20: Debt securities | C20: 23.02753554 | D20: 23.53311276 | E20: 23.88430077 | F20: 25.82015497 | G20: 29.04353312 | H20: 29.60252051 | I20: 37.44439368 | J20: 41.67279267 | K20: 48.50827218 | L20: 54.31663463
B21: IRS liability side | C21: 36.87463626 | D21: 30.94572941 | E21: 13.94749745 | F21: 0.64571363 | G21: 12.38514004 | H21: 18.8207552 | I21: 24.75945669 | J21: 26.42229588 | K21: 26.38585099 | L21: 28.73299332
B22: Non-maturing deposits hedging cost | J22: 4.121819 | K22: 21.436 | L22: 22.091
B23: Other liabilities | C23: 29.49254401 | D23: 29.08164279 | E23: 18.25120532 | F23: 6.57347427 | G23: 14.57236508 | H23: 13.96302617 | I23: 13.20660395 | J23: 12.94686114 | K23: 13.14363828 | L23: 12.76157348
B24: Interest expense | C24: =SUM(C18:C23) -> 99.55558337 | D24: 97.16296337 | E24: 73.50811231 | F24: 68.39883449 | G24: 134.3065553 | H24: 182.402385 | I24: 229.6043157 | J24: =SUM(J18:J23) -> 250.3977076 | K24: =SUM(K18:K23) -> 263.1796026 | L24: =SUM(L18:L23) -> 273.1983363
B26: Net interest income | C26: =C16-C24 -> 285.8957893 | D26: 305.567642 | E26: 330.5918463 | F26: 430.6458063 | G26: 446.8668513 | H26: 487.7994506 | I26: 531.3505102 | J26: =J16-J24 -> 536.6447533 | K26: =K16-K24 -> 517.6289376 | L26: =L16-L24 -> 527.5578681
B28: Avg 3m Euribor | C28: -0.005279375 | D28: -0.003563538462 | E28: 0.004861666667 | F28: 0.01778615385 | G28: 0.02635953846 | H28: 0.03363261538 | I28: 0.03777476923 | J28: 0.03958292308 | K28: 0.03923169231 | L28: 0.03810430769
B29: PE yield1 | C29: 0.03536759615 | D29: 0.03633836919 | E29: 0.03860701308 | F29: 0.04675268446 | G29: 0.05494972964 | H29: 0.06070619929 | I29: 0.06456266964 | J29: 0.06574 | K29: 0.06531267194 | L29: 0.0659198795
B30: CIB | C30: 0.03315173772 | D30: 0.03468215453 | E30: 0.03699231981 | F30: 0.04576735552 | G30: 0.0553504958 | H30: 0.05962173859 | I30: 0.0656281763 | J30: 0.06710789579 | K30: 0.06645371868 | L30: 0.06570416134
B31: Mortgages | C31: 0.01945342207 | D31: 0.01964683491 | E31: 0.02339318569 | F31: 0.03346283562 | G31: 0.04196765186 | H31: 0.0486774625 | I31: 0.04989064513 | J31: 0.05030215344 | K31: 0.05093633644 | L31: 0.05543153652
B32: Consumer/SB | C32: 0.07172914031 | D32: 0.07316735583 | E32: 0.07433124185 | F32: 0.0763635127 | G32: 0.0800861637 | H32: 0.08461686979 | I32: 0.08511762306 | J32: 0.08543816387 | K32: 0.08417965844 | L32: 0.08498042874
B33: Fixed income securities yield | C33: 0.01280261584 | D33: 0.01517410114 | E33: 0.01909128906 | F33: 0.02072020892 | G33: 0.02511980116 | H33: 0.02218905237 | I33: 0.02398899192 | J33: 0.02577704496 | K33: 0.02593800853 | L33: 0.02928124633
B34: Customer deposits cost | C34: 0.0005585969778 | D34: 0.0006407356248 | E34: 0.0008476923567 | F34: 0.00135244782 | G34: 0.002299282971 | H34: 0.003613751645 | I34: 0.004695375468 | J34: 0.005091867237 | K34: 0.005327272802 | L34: 0.005372492147
B35: Debt securities cost | C35: 0.04844526787 | D35: 0.04897138375 | E35: 0.04934028092 | F35: 0.06062039537 | G35: 0.06517125806 | H35: 0.06542921752 | I35: 0.06383370703 | J35: 0.06556637775 | K35: 0.06571294682 | L35: 0.06160868
B37: NIM on average assets | C37: 0.01451378082 | D37: 0.01517029364 | E37: 0.01608604129 | F37: 0.02211511629 | G37: 0.02418636455 | H37: 0.02573081644 | I37: 0.02720665124 | J37: 0.02774100685 | K37: 0.02710983522 | L37: 0.02742764458
B38: NIM on average interest earning assets2 | C38: 0.01715396842 | D38: 0.01811363543 | E38: 0.01918335147 | F38: 0.02636932094 | G38: 0.02917648862 | H38: 0.03133840251 | I38: 0.03296099912 | J38: 0.03330740201 | K38: 0.03253103983 | L38: 0.03312506811
B40: 1. Balances and related income exclude senior tranches and CLOs
B41: 2. Interest earning assets are total assets excluding equity and mutual fund financial assets, participations, goodwill and intangibles, fixed assets, deferred tax assets and discontinued
B42: 3. Non maturing deposit hedging cost corresponds to €10bn IRSs executed during late Dec.23 and Q1.24

Sheet NFI
M2: Back to Cover
B5: NET FEE INCOME
B9: (million €) | D9: Q1 2022 | E9: Q2 2022 | F9: Q3 2022 | G9: Q4 2022 | H9: Q1 2023 | I9: Q2 2023 | J9: Q3 2023 | K9: Q4 2023 | L9: Q1 2024 | M9: Q2 2024
B10: Financing | C10: Loans | D10: 18.74705739 | E10: 25.91201244 | F10: 19.65718061 | G10: 23.16886717 | H10: 20.9666685 | I10: 30.55612159 | J10: 21.57505974 | K10: 20.96132865 | L10: 20.98996567 | M10: 29.99487892
C11: Letters of guarantee | D11: 8.63785862 | E11: 9.62163728 | F11: 9.89439551 | G11: 11.20407593 | H11: 11.11191548 | I11: 11.30165805 | J11: 12.0567283 | K11: 12.91094521 | L11: 12.37338723 | M11: 12.62291734
C12: Investment banking | D12: 2.44107457 | E12: 0.0144 | F12: 3.57669583 | G12: 1.82577887 | H12: 0.265 | I12: 0.12077125 | J12: 2.17603 | K12: 3.12940394 | L12: 4.97154173 | M12: 0.6666564
B13: Investment | C13: Bancassurance | D13: 10.19825264 | E13: 11.5088355 | F13: 11.54397734 | G13: 13.02348817 | H13: 11.24965382 | I13: 11.65291356 | J13: 11.42535435 | K13: 15.38891359 | L13: 13.70282772 | M13: 14.25333216
C14: Asset management | D14: 6.94468917 | E14: 5.61014948 | F14: 6.09308048 | G14: 6.61703554 | H14: 7.399120124 | I14: 8.671807156 | J14: 8.10975183 | K14: 12.26174394 | L14: 11.76488726 | M14: 12.35732213
C15: Brokerage | D15: 5.1470756 | E15: 3.88239264 | F15: 4.16664089 | G15: 3.51767283 | H15: 4.73486413 | I15: 5.43506273 | J15: 5.88394296 | K15: 3.93725419 | L15: 7.33840201 | M15: 6.22818427
B16: Transaction Banking | C16: Funds transfer | D16: 18.480499 | E16: 21.48827459 | F16: 22.47452383 | G16: 23.65377066 | H16: 21.25105537 | I16: 23.76425347 | J16: 27.45749906 | K16: 26.10407631 | L16: 25.52923853 | M16: 32.06874294
C17: Cards & Acquiring | D17: 13.53969128 | E17: 7.29928744 | F17: 7.90167658 | G17: 5.83492813 | H17: 10.43776474 | I17: 9.34376328 | J17: 8.96191884 | K17: 12.1960063 | L17: 12.53806923 | M17: 31.88370676
C18: Payments | D18: 6.59795336 | E18: 6.65446902 | F18: 6.26909527 | G18: 4.28008403 | H18: 5.69319239 | I18: 6.24092624 | J18: 6.23635674 | K18: 3.30246892 | L18: 5.75028768 | M18: 6.20846228
C19: FX fees | D19: 6.11548706 | E19: 8.53745616 | F19: 10.06072981 | G19: 9.3668429 | H19: 7.1370409 | I19: 7.6781423 | J19: 8.76787502 | K19: 7.49763763 | L19: 6.90122711 | M19: 8.08020191
C20: Other | D20: 3.89718859 | E20: 4.690189 | F20: 6.04607646 | G20: 4.84698752 | H20: 4.44498921 | I20: 5.71850738 | J20: 7.66501066 | K20: 4.9170061 | L20: 3.51311421 | M20: 4.98901835
B21: Rental and other income | D21: 11.995 | E21: 15.875 | F21: 17.513 | G21: 18.487 | H21: 16.956 | I21: 20.922 | J21: 19.67 | K21: 20.99 | L21: 19.947 | M21: 19.886
B22: Total | D22: =SUM(D10:D21) -> 112.7418273 | E22: 121.0941036 | F22: 125.1970726 | G22: 125.8265318 | H22: 121.6472647 | I22: 141.405927 | J22: 139.9855275 | K22: 143.5967848 | L22: =SUM(L10:L21) -> 145.3199484 | M22: =SUM(M10:M21) -> 179.2394235
B24: *As of Q1.22 restatements have been made due to the integration of Wealth & Asset management segment

Sheet OPEX
L2: Back to Cover
B5: OPERATING COSTS
B7: (million €)
B8: STAFF COSTS | C8: Q1 2022 | D8: Q2 2022 | E8: Q3 2022 | F8: Q4 2022 | G8: Q1 2023 | H8: Q2 2023 | I8: Q3 2023 | J8: Q4 2023 | K8: Q1 2024 | L8: Q2 2024
B9: Staff costs recurring | C9: 91.201 | D9: 94.555 | E9: 101.38835 | F9: 101.642 | G9: 93.547 | H9: 94.395493 | I9: 94.291754 | J9: 104.846 | K9: 91.26469612 | L9: 96.5115905
B10: VES costs | C10: 0 | D10: 6.6 | E10: 19.87765 | F10: 30.314 | G10: 3.172 | H10: 2.174507 | I10: 1.066246 | J10: 55.485 | K10: 9.60330388 | L10: 4.2904095
B11: Other one-offs(1) | I11: -15 | J11: =4.396+3.768 -> 8.164
B12: Total | C12: =C9+C10+C11 -> 91.201 | D12: 101.155 | E12: 121.266 | F12: 131.956 | G12: 96.719 | H12: 96.57 | I12: =I9+I10+I11 -> 80.358 | J12: =J9+J10+J11 -> 168.495 | K12: =K9+K10+K11 -> 100.868 | L12: =L9+L10+L11 -> 100.802
B14: G&A COSTS | C14: Q1 2022 | D14: Q2 2022 | E14: Q3 2022 | F14: Q4 2022 | G14: Q1 2023 | H14: Q2 2023 | I14: Q3 2023 | J14: Q4 2023 | K14: Q1 2024 | L14: Q2 2024
B15: Rents - maintenance | C15: 9.14918279 | D15: 8.92775003 | E15: 9.10588822 | F15: 8.77741626 | G15: 8.05315097 | H15: 7.67137686 | I15: 8.87831032 | J15: 5.58821521 | K15: 6.51226753 | L15: 6.71632148
B16: IT - telco | C16: 12.23865149 | D16: 7.001318506 | E16: 10.42754433 | F16: 2.185714591 | G16: 8.41056389 | H16: 8.73212458 | I16: 8.88315269 | J16: 4.65710335 | K16: 9.02109183 | L16: 7.6572765
B17: Legal - business services | C17: 1.4526505 | D17: 4.71936502 | E17: 6.73368911 | F17: 3.95125807 | G17: 2.49697899 | H17: 4.69668445 | I17: 4.64841153 | J17: 6.15187508 | K17: 2.38427506 | L17: 4.63464696
B18: Marketing - subscriptions | C18: 5.69603829 | D18: 6.82723049 | E18: 5.61736556 | F18: 7.34903121 | G18: 5.51086017 | H18: 6.32585327 | I18: 5.99507024 | J18: 7.26670436 | K18: 6.31504298 | L18: 9.5400192
B19: Taxes | C19: 15.94412011 | D19: 16.34322741 | E19: 13.38762702 | F19: 13.78511962 | G19: 20.1488156 | H19: 17.59533623 | I19: 9.31210217 | J19: 13.2117067 | K19: 24.06920743 | L19: 13.25868443
B20: DGS - SRF | C20: 12.42302951 | D20: 14.65350771 | E20: 16.84064009 | F20: 14.82155871 | G20: 11.79499994 | H20: 6.21317206 | I20: 9.004086 | J20: -7.49282987 | K20: 0.2686777 | L20: 0.2686777
B21: Other(2) | C21: 17.18646995 | D21: 18.07852334 | E21: 19.58599122 | F21: 26.52591028 | G21: 16.1404703 | H21: 17.17302413 | I21: 19.22360403 | J21: 25.97487963 | K21: 15.05541099 | L21: 22.42502744
B22: Subsidiaries | C22: 7.22888941 | D22: 10.60105981 | E22: 3.4865601 | F22: 6.48667125 | G22: 10.6013016 | H22: 10.02075966 | I22: 7.76448014 | J22: 8.87708421 | K22: 9.26509417 | L22: 8.75448366
B23: G&A costs recurring | C23: =SUM(C15:C22) -> 81.31903205 | D23: 87.15198231 | E23: 85.18530565 | F23: 83.88267999 | G23: 83.15714146 | H23: 78.42833124 | I23: =SUM(I15:I22) -> 73.70921712 | J23: =SUM(J15:J22) -> 64.23473867 | K23: =SUM(K15:K22) -> 72.89106769 | L23: =SUM(L15:L22) -> 73.25513737
B24: Extraordinary general expenses for extreme weather phenomena | I24: 15.5
B25: Total | C25: =C23 -> 81.31903205 | D25: 87.15198231 | E25: 85.18530565 | F25: 83.88267999 | G25: 83.15714146 | H25: =H23 -> 78.42833124 | I25: =SUM(I23:I24) -> 89.20921712 | J25: =SUM(J23:J24) -> 64.23473867 | K25: =SUM(K23:K24) -> 72.89106769 | L25: =SUM(L23:L24) -> 73.25513737
B27: (1) Q3 2023 other staff costs comprise reversal of talent retention accruals due to share buyback; Q4 2023 other staff costs comprise share buyback accruals expensed for talent retention and subsidy for low paid employees
B28: (2) Other includes Net gain/(losses) from sale of property and equipment and intangible assets

Sheet PL segment view
K2: Back to Cover
B5: P&L SEGMENT VIEW H1.24
B8: (million €) | C8: Retail | D8: Corporate & IB | E8: Financial markets | F8: Other | G8: CORE TOTAL | I8: NPEMU | K8: GROUP
B9: Net interest income | C9: 537.2378696 | D9: 328.6880882 | E9: 196.4653681 | F9: -2.22205224 | G9: =SUM(C9:F9) -> 1060.169274 | I9: -14.98246791 | K9: =G9+I9 -> 1045.186806
B10: Net fee and commission income | C10: 149.6801645 | D10: 110.8935935 | E10: 6.95845096 | F10: 14.47014118 | G10: =SUM(C10:F10) -> 282.0023501 | I10: 2.72402208 | K10: =G10+I10 -> 284.7263722
B11: Rental and non-banking activities income | C11: 0 | D11: 0 | E11: 0 | F11: 37.40973718 | G11: 37.40973718 | I11: 2.42335814 | K11: 39.83309532
B12: Trading & other income | C12: -1.10274101 | D12: -2.65697593 | E12: 8.56206723 | F12: -10.47005333 | G12: -5.66770304 | I12: -2.90635727 | K12: -8.57406031
B13: Net revenues | C13: =SUM(C9:C12) -> 685.8152931 | D13: 436.9247057 | E13: 211.9858863 | F13: 39.18777279 | G13: =SUM(C13:F13) -> 1373.913658 | I13: =SUM(I9:I12) -> -12.74144496 | K13: =G13+I13 -> 1361.172213
B14: Operating cost | C14: -202.3753494 | D14: -87.91387433 | E14: -21.90367522 | F14: -61.68898155 | G14: =SUM(C14:F14) -> -373.8818805 | I14: -17.86842133 | K14: =G14+I14 -> -391.7503018
B15: Pre provision income (PPI) | C15: =C13+C14 -> 483.4399437 | D15: 349.0108314 | E15: 190.0822111 | F15: =F13+F14 -> -22.50120876 | G15: =SUM(C15:F15) -> 1000.031777 | I15: =I13+I14 -> -30.60986629 | K15: =G15+I15 -> 969.4219111
B16: Loan impairment | C16: -30.83066329 | D16: -36.83725624 | E16: -0.11321196 | F16: 2.80308302 | G16: =SUM(C16:F16) -> -64.97804847 | I16: -24.6172909 | K16: =G16+I16 -> -89.59533937
B17: Other impairment | C17: 0.10153031 | D17: -0.65621427 | E17: 0.27577278 | F17: -37.00302304 | G17: =SUM(C17:F17) -> -37.28193422 | I17: -6.55890141 | K17: =G17+I17 -> -43.84083563
B18: Associates income | C18: 0 | D18: 0 | E18: 0 | F18: -4.29497862 | G18: -4.29497862 | I18: 14.76232507 | K18: 10.46734645
B19: Profit before tax(1) | C19: =SUM(C15:C18) -> 452.7108107 | D19: 311.5173609 | E19: 190.2447719 | F19: =SUM(F15:F18) -> -60.9961274 | G19: =SUM(G15:G18) -> 893.4768161 | I19: =SUM(I15:I18) -> -47.02373353 | K19: =SUM(K15:K18) -> 846.4530825
B21: Assets | C21: 11904.86443 | D21: 23090.99764 | E21: 26257.62241 | F21: 6521.490875 | G21: =SUM(C21:F21) -> 67774.97535 | I21: 8850.873899 | K21: =G21+I21 -> 76625.84925
B23: NIM over assets | C23: =C9*2/C21 -> 0.09025518478 | D23: =D9*2/D21 -> 0.02846893783 | E23: =E9*2/E21 -> 0.01496444461 | F23: =F9*2/F21 -> -0.0006814552938 | G23: =G9*2/G21 -> 0.03128497703 | I23: =I9*2/I21 -> -0.003385534148 | K23: =K9*2/K21 -> 0.0272802668
B24: NFI and rental Income over assets | C24: =(C10+C11)*2/C21 -> 0.02514605107 | D24: =(D10+D11)*2/D21 -> 0.009604920082 | E24: =(E10+E11)*2/E21 -> 0.0005300137881 | F24: =(F10+F11)*2/F21 -> 0.01591043501 | G24: =(G10+G11)*2/G21 -> 0.009425664432 | I24: =(I10+I11)*2/I21 -> 0.001163134913 | K24: =(K10+K11)*2/K21 -> 0.008471278835
B25: Cost to core income | C25: =-C14/(C9+C10+C11) -> 0.2946135337 | D25: 0.1999943992 | E25: 0.1076750762 | F25: 1.242281154 | G25: 0.2710111133 | I25: n.m. | K25: 0.2860020936
B26: PPI over assets | C26: =C15*2/C21 -> 0.08121721107 | D26: =D15*2/D21 -> 0.03022916869 | E26: =E15*2/E21 -> 0.01447825002 | F26: =F15*2/F21 -> -0.006900633365 | G26: =G15*2/G21 -> 0.02951035459 | I26: =I15*2/I21 -> -0.006916800904 | K26: =K15*2/K21 -> 0.02530273845
B27: Cost of risk | C27: 0.006956965486 | D27: 0.003466373974 | E27: 0.0004344251 | F27: -0.05703826484 | G27: 0.004228029573 | I27: 0.007168280208 | K27: 0.004765051218
B28: Pre-tax RoA | C28: =C19*2/C21 -> 0.07605476119 | D28: =D19*2/D21 -> 0.02698171519 | E28: =E19*2/E21 -> 0.01449063201 | F28: =F19*2/F21 -> -0.01870619114 | G28: =G19*2/G21 -> 0.02636597981 | I28: =I19*2/I21 -> -0.01062578319 | K28: =K19*2/K21 -> 0.02209314718
B30: (1) Profit before tax illustrated on the table excludes cards merchant acquiring business consideration and non-recurring operating costs

Sheet Performing loans
L2: Back to Cover
B5: PERFORMING LOANS
C9: 2022-03-31 | D9: 2022-06-30 | E9: 2022-09-30 | F9: 2022-12-31 | G9: 2023-03-31 | H9: 2023-06-30 | I9: 2023-09-30 | J9: 2023-12-31 | K9: 2024-03-31 | L9: 2024-06-30
B10: Segments
B11: Corporate lending | C11: 17905.0001 | D11: 19098.74722 | E11: 19984.73874 | F11: 20514.44566 | G11: 20383.71388 | H11: 21105.37598 | I11: 21515.48746 | J11: 22337.0366 | K11: 22236.1564 | L11: 23518.71197
B12: >> Large corporate | C12: =C11-C13-C14-C15 -> 7922.179123 | D12: 8464.099121 | E12: 9077.235677 | F12: =F11-F13-F14-F15 -> 9342.980693 | G12: =G11-G13-G14-G15 -> 9281.816164 | H12: =H11-H13-H14-H15 -> 9745.658229 | I12: =I11-I13-I14-I15 -> 10065.28064 | J12: =J11-J13-J14-J15 -> 10523.98014 | K12: =K11-K13-K14-K15 -> 10581.83512 | L12: 11033.95024
B13: >> SME | C13: 6069.641297 | D13: 6349.494447 | E13: 6377.919239 | F13: 6772.123473 | G13: 6694.118748 | H13: 6832.391938 | I13: 6796.526392 | J13: 7081.026814 | K13: 6887.629958 | L13: 7189.954836
B14: >> Shipping | C14: 2043.23402 | D14: 2247.922086 | E14: 2510.768065 | F14: 2344.955517 | G14: 2407.499759 | H14: 2344.1885 | I14: 2455.983517 | J14: 2476.287917 | K14: 2525.243306 | L14: 2990.93561
B15: >> SB | C15: 1869.945655 | D15: 2037.231566 | E15: 2018.815762 | F15: 2054.385977 | G15: 2000.279204 | H15: 2183.137316 | I15: 2197.696904 | J15: 2255.741737 | K15: 2241.448014 | L15: 2303.87128
B16: Retail lending | C16: =+C17+C18 -> 8348.745168 | D16: 8357.150072 | E16: 8298.886948 | F16: 8119.15897 | G16: =+G17+G18 -> 7964.641716 | H16: =+H17+H18 -> 7882.207769 | I16: =+I17+I18 -> 7836.403578 | J16: =+J17+J18 -> 7796.919908 | K16: =+K17+K18 -> 7756.541124 | L16: 7767.655986
B17: >>Mortgage loans | C17: 6668.114092 | D17: 6632.046139 | E17: 6575.160646 | F17: 6490.847556 | G17: 6359.265384 | H17: 6261.547857 | I17: 6196.56997 | J17: 6202.945883 | K17: 6161.187211 | L17: 6132.641711
B18: >>Consumer loans & credit cards | C18: 1680.631076 | D18: 1725.103933 | E18: 1723.726302 | F18: 1628.311414 | G18: 1605.376332 | H18: 1620.659911 | I18: 1639.833608 | J18: 1593.974025 | K18: 1595.353913 | L18: 1635.014275
B19: Senior notes | C19: 6182 | D19: 6131.167831 | E19: 6108.781908 | F19: 6074.423942 | G19: 6034.044451 | H19: 5951.678019 | I19: 5900.835784 | J19: 5984.42364 | K19: 5902.695932 | L19: 5848.663915
B20: Total | C20: =+C11+C16+C19 -> 32435.74526 | D20: 33587.06512 | E20: 34392.4076 | F20: 34708.02857 | G20: =+G11+G16+G19 -> 34382.40004 | H20: =+H11+H16+H19 -> 34939.26177 | I20: =+I11+I16+I19 -> 35252.72682 | J20: =+J11+J16+J19 -> 36118.38015 | K20: =+K11+K16+K19 -> 35895.39346 | L20: =+L11+L16+L19 -> 37135.03187
B22: Industry
B23: Manufacturing | C23: 3044 | D23: 3276 | E23: 3393 | F23: 3487 | G23: 3326 | H23: 3347 | I23: 3226 | J23: 3297.225802 | K23: 2939.058291 | L23: 3268.396443
B24: Hospitality | C24: 1774 | D24: 1789 | E24: 1927 | F24: 2083 | G24: 2116 | H24: 2265 | I24: 2246 | J24: 2291.285372 | K24: 2333.991416 | L24: 2353.615041
B25: Energy | C25: 1572 | D25: 1751 | E25: 1863 | F25: 1978 | G25: 1992 | H25: 2109 | I25: 2337 | J25: 2567.21876 | K25: 2538.736493 | L25: 2561.779667
B26: Trade (retail & wholesale) | C26: 1955 | D26: 2089 | E26: 2065 | F26: 2188 | G26: 2210 | H26: 2413 | I26: 2388 | J26: 2429.513743 | K26: 2551.076331 | L26: 2677.58616
B27: Construction & real estate | C27: 1282 | D27: 1371 | E27: 1713 | F27: 1862 | G27: 1921 | H27: 1954 | I27: 1997 | J27: 1956.657741 | K27: 1956.587128 | L27: 2004.609487
B28: Transportation (incl shipping) | C28: 2796 | D28: 2974 | E28: 3228 | F28: 3112 | G28: 3247 | H28: 3179 | I28: 3324 | J28: 3354.642989 | K28: 3493.35787 | L28: 3950.916118
B29: Other | C29: 3612 | D29: 3812 | E29: 3777 | F29: 3750 | G29: =G12+G13+G14-SUM(G23:G28) -> 3571.434672 | H29: 3655.238668 | I29: 3799.790552 | J29: 4184.75046 | K29: 4181.900858 | L29: 4397.937773
B30: Total CIB (Corporate, SME & Shipping) | C30: =SUM(C23:C29) -> 16035 | D30: 17062 | E30: 17966 | F30: 18460 | G30: =SUM(G23:G29) -> 18383.43467 | H30: 18922.23867 | I30: 19317.79055 | J30: 20081.29487 | K30: 19994.70839 | L30: 21214.84069
B33: * Corporate lending excludes seasonal OPEKEPE loan of €1,517mn for Dec.22 and €951mn for Dec.23

Sheet Loan portfolio quality
L2: Back to Cover
B5: LOAN PORTFOLIO QUALITY
B9: CONSOLIDATED LOAN PORTFOLIO QUALITY | C9: 2022-03-31 | D9: 2022-06-30 | E9: 2022-09-30 | F9: 2022-12-31 | G9: 2023-03-31 | H9: 2023-06-30 | I9: 2023-09-30 | J9: 2023-12-31 | K9: 2024-03-31 | L9: 2024-06-30
B10: Gross loans
B11: 1. Loans to businesses | C11: 28061.08899 | D11: 28043.94265 | E11: 28792.26117 | F11: 28557.66554 | G11: 28191.74343 | H11: 28717.45979 | I11: 29041.36976 | J11: 29332.75215 | K11: 29104.34765 | L11: 30260.11441
B12: o/w Senior notes | C12: 6182 | D12: 6131.167831 | E12: 6108.781908 | F12: 6074.423942 | G12: 6034.044451 | H12: 5951.678019 | I12: 5900.835784 | J12: 5984.42364 | K12: 5902.695932 | L12: 5848.663915
B13: 2. OPEKEPE (seasonal loan to farmers) | C13: 0 | D13: 0 | E13: 0 | F13: 1517.325567 | G13: 0 | H13: 0 | I13: 0 | J13: 950.670316 | K13: 0 | L13: 0
B14: 3. Mortgage loans | C14: 7114.918883 | D14: 6984.917711 | E14: 6945.007859 | F14: 6879.643293 | G14: 6756.681081 | H14: 6518.544979 | I14: 6475.595438 | J14: 6453.915792 | K14: 6425.051874 | L14: 6420.100073
B15: 4. Consumer loans | C15: 1981.476942 | D15: 1983.95009 | E15: 1986.430286 | F15: 1895.035972 | G15: 1875.528453 | H15: 1751.836632 | I15: 1781.217874 | J15: 1661.032566 | K15: 1668.636292 | L15: 1718.324532
B16: 5. Loans to individuals | C16: =C14+C15 -> 9096.395825 | D16: =D15+D14 -> 8968.8678 | E16: =E14+E15 -> 8931.438145 | F16: 8774.679265 | G16: 8632.209535 | H16: 8270.381611 | I16: 8256.813312 | J16: =J14+J15 -> 8114.948359 | K16: =K14+K15 -> 8093.688166 | L16: 8138.424605
B17: 6. Total gross loans to customers | C17: =C11+C16 -> 37157.48481 | D17: =D11+D16 -> 37012.81045 | E17: =E11+E16 -> 37723.69932 | F17: =F11+F13+F16 -> 38849.67037 | G17: 36823.95296 | H17: 36987.8414 | I17: 37298.18307 | J17: =J11+J13+J16 -> 38398.37082 | K17: =K11+K13+K16 -> 37198.03581 | L17: 38398.53902
B19: Loans in arrears > 90 days
B20: 1. Loans to businesses | C20: 2884.701936 | D20: 1783.528425 | E20: 1737.239514 | F20: 1329.465923 | G20: 1180.556471 | H20: 985.0201321 | I20: 1045.894605 | J20: 607.3070789 | K20: 665.6129204 | L20: 670.8357885
B21: 2. Mortgage loans | C21: 214.036161 | D21: 174.786486 | E21: 203.6454391 | F21: 227.5013347 | G21: 263.3958226 | H21: 130.5638406 | I21: 155.1127244 | J21: 139.4605199 | K21: 158.0215683 | L21: 186.7531502
B22: 3. Consumer loans | C22: 232.3494553 | D22: 204.9286022 | E22: 212.2917734 | F22: 214.9766817 | G22: 224.5915529 | H22: 93.77595562 | I22: 105.9343464 | J22: 43.0576309 | K22: 51.71751938 | L22: 63.85470786
B23: 4. Loans to individuals | C23: =C21+C22 -> 446.3856163 | D23: 379.7150882 | E23: 415.9372125 | F23: 442.4780165 | G23: =G21+G22 -> 487.9873755 | H23: =H21+H22 -> 224.3397962 | I23: =I21+I22 -> 261.0470708 | J23: =J21+J22 -> 182.5181508 | K23: =K21+K22 -> 209.7390876 | L23: 250.6078581
B24: 5. Total loans in arrears | C24: =C20+C23 -> 3331.087552 | D24: 2163.243513 | E24: 2153.176726 | F24: =F20+F23 -> 1771.943939 | G24: =G20+G23 -> 1668.543847 | H24: =H20+H23 -> 1209.359928 | I24: =I20+I23 -> 1306.941676 | J24: =J20+J23 -> 789.8252297 | K24: =K20+K23 -> 875.352008 | L24: 921.4436466
B26: NPEs
B27: 1. Loans to businesses | C27: 3974.088891 | D27: 2814.027599 | E27: 2698.740523 | F27: 1968.795934 | G27: 1773.985098 | H27: 1660.405789 | I27: 1625.046523 | J27: 1011.291907 | K27: 965.4953157 | L27: 892.7385286
B28: 2. Mortgage loans | C28: 446.8047911 | D28: 352.8715715 | E28: 369.8472139 | F28: 388.7957367 | G28: 397.4156973 | H28: 256.9971214 | I28: 279.0254672 | J28: 250.9699095 | K28: 263.8646625 | L28: 287.4583618
B29: 3. Consumer loans | C29: 300.8458654 | D29: 258.8461567 | E29: 262.7039837 | F29: 266.7245582 | G29: 270.1521217 | H29: 131.1767209 | I29: 141.3842667 | J29: 67.05854156 | K29: 73.28237892 | L29: 83.31025743
B30: 4. Loans to individuals | C30: =C28+C29 -> 747.6506565 | D30: 611.7177282 | E30: 632.5511975 | F30: 655.5202949 | G30: 667.567819 | H30: =H28+H29 -> 388.1738423 | I30: =I28+I29 -> 420.4097339 | J30: =J28+J29 -> 318.028451 | K30: =K28+K29 -> 337.1470414 | L30: 370.7686192
B31: 5. Total loans in arrears | C31: =C27+C30 -> 4721.739548 | D31: 3425.745327 | E31: 3331.291721 | F31: =F27+F30 -> 2624.316229 | G31: =G27+G30 -> 2441.552917 | H31: =H27+H30 -> 2048.579632 | I31: =I27+I30 -> 2045.456256 | J31: =J27+J30 -> 1329.320358 | K31: =K27+K30 -> 1302.642357 | L31: =L27+L30 -> 1263.507148
B35: LLRs
B36: 1. Loans to businesses | C36: 1762.514131 | D36: 1273.969869 | E36: 1338.154028 | F36: 1131.645105 | G36: 1059.972213 | H36: 1000.017739 | I36: 998.1183388 | J36: 697.4260923 | K36: 656.8570086 | L36: 609.2093585
B37: 2. Mortgage loans | C37: 81.7536112 | D37: 80.59492258 | E37: 83.60878764 | F37: 86.43632532 | G37: 89.25912199 | H37: 47.79273894 | I37: 50.08382785 | J37: 42.18063909 | K37: 43.51241845 | L37: 45.71307172
B38: 3. Consumer loans | C38: 236.2588863 | D38: 212.9066846 | E38: 208.901476 | F38: 213.3856934 | G38: 210.5044835 | H38: 116.1788844 | I38: 123.6948934 | J38: 79.44453044 | K38: 83.57660803 | L38: 88.19003204
B39: 4. Loans to individuals | C39: 318.0124975 | D39: 293.5016071 | E39: 292.5102636 | F39: 299.8220187 | G39: 299.7636055 | H39: 163.9716233 | I39: 173.7787212 | J39: 121.6251695 | K39: 127.0890265 | L39: 133.9031038
B40: 5. Total loans to customers | C40: =C36+C39 -> 2080.526628 | D40: =D36+D39 -> 1567.471476 | E40: =E36+E39 -> 1630.664292 | F40: =F36+F39 -> 1431.467124 | G40: =G36+G39 -> 1359.735818 | H40: =H36+H39 -> 1163.989363 | I40: =I36+I39 -> 1171.89706 | J40: =J36+J39 -> 819.0512618 | K40: =K36+K39 -> 783.9460351 | L40: =L36+L39 -> 743.1124623
B42: Loans in arrears > 90 days / gross loans
B43: 1. Loans to businesses | C43: =+C20/C11 -> 0.1028007836 | D43: =+D20/D11 -> 0.06359763485 | E43: =+E20/E11 -> 0.06033702957 | F43: =+F20/(F11+F13) -> 0.04420503129 | G43: 0.04187596537 | H43: 0.03430039214 | I43: 0.03601395575 | J43: 0.02005410979 | K43: =+K20/(K11+K13) -> 0.02286987939 | L43: 0.02216897727
B44: 2. Mortgage loans | C44: =+C21/C14 -> 0.0300827268 | D44: =+D21/D14 -> 0.02502341377 | E44: =+E21/E14 -> 0.02932256424 | F44: =+F21/F14 -> 0.03306876898 | G44: =+G21/G14 -> 0.03898301835 | H44: =+H21/H14 -> 0.02002959878 | I44: =+I21/I14 -> 0.02395343036 | J44: =+J21/J14 -> 0.02160866741 | K44: =+K21/K14 -> 0.02459459805 | L44: 0.02908882231
B45: 3. Consumer loans | C45: =+C22/C15 -> 0.1172607414 | D45: =+D22/D15 -> 0.1032932246 | E45: =+E22/E15 -> 0.1068709911 | F45: =+F22/F15 -> 0.1134420058 | G45: =+G22/G15 -> 0.1197484115 | H45: =+H22/H15 -> 0.05353008031 | I45: =+I22/I15 -> 0.0594729864 | J45: =+J22/J15 -> 0.02592220753 | K45: =+K22/K15 -> 0.03099388382 | L45: 0.03716102905
B46: 4. Loans to individuals | C46: =+C23/C16 -> 0.04907280035 | D46: =+D23/D16 -> 0.04233701473 | E46: =+E23/E16 -> 0.04657001546 | F46: =+F23/F16 -> 0.05042668833 | G46: =+G23/G16 -> 0.05653099285 | H46: =+H23/H16 -> 0.0271256886 | I46: =+I23/I16 -> 0.03161595895 | J46: =+J23/J16 -> 0.02249159732 | K46: =+K23/K16 -> 0.02591390765 | L46: =+L23/L16 -> 0.03079316578
B47: 5. Total loans to customers | C47: =+C24/(C17) -> 0.08964782113 | D47: 0.05844580529 | E47: 0.0570775604 | F47: 0.0456102696 | G47: =+G24/(G17) -> 0.04531137243 | H47: =+H24/(H17) -> 0.03269614777 | I47: =+I24/(I17) -> 0.03504035769 | J47: =+J24/(J17) -> 0.02056923804 | K47: =+K24/(K17) -> 0.02353221048 | L47: 0.02399684129
B49: NPEs / gross loans
B50: 1. Loans to businesses | C50: =+C27/(C11+C13) -> 0.1416227607 | D50: 0.1003435085 | E50: 0.09373145467 | F50: 0.06546289332 | G50: =+G27/(G11+G13) -> 0.06292569677 | H50: 0.05781868597 | I50: 0.05595626294 | J50: 0.03339424096 | K50: 0.03317357693 | L50: 0.02950215311
B51: 2. Mortgage loans | C51: =+C28/C14 -> 0.06279829728 | D51: =+D28/D14 -> 0.05051907354 | E51: =+E28/E14 -> 0.05325367823 | F51: =+F28/F14 -> 0.05651393831 | G51: =+G28/G14 -> 0.05881818196 | H51: =+H28/H14 -> 0.03942553472 | I51: =+I28/I14 -> 0.04308877383 | J51: =+J28/J14 -> 0.03888645553 | K51: =+K28/K14 -> 0.04106809838 | L51: 0.04477474783
B52: 3. Consumer loans | C52: =+C29/C15 -> 0.1518291023 | D52: =+D29/D15 -> 0.130470095 | E52: =+E29/E15 -> 0.1322492844 | F52: =+F29/F15 -> 0.140749074 | G52: =+G29/G15 -> 0.1440405349 | H52: =+H29/H15 -> 0.07487953986 | I52: =+I29/I15 -> 0.07937505498 | J52: =+J29/J15 -> 0.04037159952 | K52: =+K29/K15 -> 0.0439175267 | L52: 0.04848342433
B53: 4. Loans to individuals | C53: =+C30/C16 -> 0.08219196601 | D53: =+D30/D16 -> 0.06820456515 | E53: =+E30/E16 -> 0.07082299483 | F53: =+F30/F16 -> 0.07470589809 | G53: =+G30/G16 -> 0.07733452441 | H53: =+H30/H16 -> 0.04693542095 | I53: =+I30/I16 -> 0.05091670576 | J53: =+J30/J16 -> 0.03919044669 | K53: =+K30/K16 -> 0.04165555115 | L53: =+L30/L16 -> 0.04555778756
B54: 5. Total loans to customers | C54: =+C31/(C17) -> 0.1270737127 | D54: =+D31/(D17) -> 0.09255566614 | E54: =+E31/(E17) -> 0.08830766284 | F54: =+F31/(F17) -> 0.06755054043 | G54: =+G31/(G17) -> 0.06630339007 | H54: =+H31/(H17) -> 0.05538521725 | I54: =+I31/(I17) -> 0.05484064069 | J54: =+J31/(J17) -> 0.03461918643 | K54: =+K31/(K17) -> 0.0350191167 | L54: =+L31/(L17) -> 0.03290508389
B56: LLRs / gross loans
B57: 1. Loans to businesses | C57: =+C36/C11 -> 0.06280989779 | D57: =+D36/D11 -> 0.04542763065 | E57: =+E36/E11 -> 0.0464761701 | F57: =+F36/(F11+F13) -> 0.03762744604 | G57: 0.03759867549 | H57: 0.03482263914 | I57: 0.0343688451 | J57: 0.02302996278 | K57: =+K36/(K11+K13) -> 0.0225690339 | L57: 0.02013242086
B58: 2. Mortgage loans | C58: =+C37/C14 -> 0.01149044881 | D58: =+D37/D14 -> 0.0115384212 | E58: =+E37/E14 -> 0.0120386887 | F58: =+F37/F14 -> 0.01256407079 | G58: =+G37/G14 -> 0.01321049801 | H58: =+H37/H14 -> 0.007331810871 | I58: =+I37/I14 -> 0.007734242871 | J58: =+J37/J14 -> 0.006535666167 | K58: =+K37/K14 -> 0.00677230617 | L58: 0.007120305166
B59: 3. Consumer loans | C59: =+C38/C15 -> 0.1192337298 | D59: =+D38/D15 -> 0.1073145366 | E59: =+E38/E15 -> 0.1051642625 | F59: =+F38/F15 -> 0.1126024501 | G59: =+G38/G15 -> 0.1122374246 | H59: =+H38/H15 -> 0.06631833257 | I59: =+I38/I15 -> 0.0694439996 | J59: =+J38/J15 -> 0.04782840027 | K59: =+K38/K15 -> 0.05008677351 | L59: 0.05132326891
B60: 4. Loans to individuals | C60: =+C39/C16 -> 0.03496027477 | D60: =+D39/D16 -> 0.03272448805 | E60: =+E39/E16 -> 0.03275063421 | F60: =+F39/F16 -> 0.03416900034 | G60: =+G39/G16 -> 0.03472617344 | H60: =+H39/H16 -> 0.01982636727 | I60: =+I39/I16 -> 0.02104670587 | J60: =+J39/J16 -> 0.01498779341 | K60: =+K39/K16 -> 0.01570223906 | L60: 0.01645319706
B61: 5. Total loans to customers | C61: 0.05599212754 | D61: 0.04234943136 | E61: =+E40/E17 -> 0.04322652129 | F61: 0.03684631324 | G61: 0.03692530836 | H61: 0.03146951318 | I61: 0.03141968223 | J61: =+J40/J17 -> 0.02133036491 | K61: =+K40/K17 -> 0.02107493092 | L61: 0.01935262334
B63: LLRs / NPLs
B64: 1. Loans to businesses | C64: =+C36/C20 -> 0.6109865665 | D64: =+D36/D20 -> 0.7142974853 | E64: =+E36/E20 -> 0.7702760715 | F64: =+F36/F20 -> 0.8512027916 | G64: =+G36/G20 -> 0.8978581189 | H64: =+H36/H20 -> 1.015225686 | I64: =+I36/I20 -> 0.9543201902 | J64: =+J36/J20 -> 1.148391179 | K64: =+K36/K20 -> 0.9868453398 | L64: 0.9081348505
B65: 2. Mortgage loans | C65: =+C37/C21 -> 0.381961678 | D65: =+D37/D21 -> 0.4611049997 | E65: =+E37/E21 -> 0.4105605704 | F65: =+F37/F21 -> 0.3799376624 | G65: =+G37/G21 -> 0.338878275 | H65: =+H37/H21 -> 0.3660488136 | I65: =+I37/I21 -> 0.3228866494 | J65: =+J37/J21 -> 0.3024557712 | K65: =+K37/K21 -> 0.275357465 | L65: 0.2447780488
B66: 3. Consumer loans | C66: =+C38/C22 -> 1.016825652 | D66: =+D38/D22 -> 1.038931034 | E66: =+E38/E22 -> 0.9840300102 | F66: =+F38/F22 -> 0.9925992518 | G66: =+G38/G22 -> 0.9372769399 | H66: =+H38/H22 -> 1.238898432 | I66: =+I38/I22 -> 1.167656172 | J66: =+J38/J22 -> 1.845074352 | K66: =+K38/K22 -> 1.616021206 | L66: 1.38110462
B67: 4. Loans to individuals | C67: =+C39/C23 -> 0.7124165428 | D67: =+D39/D23 -> 0.7729521851 | E67: =+E39/E23 -> 0.7032558156 | F67: =+F39/F23 -> 0.6775975474 | G67: =+G39/G23 -> 0.6142855748 | H67: =+H39/H23 -> 0.7309074275 | I67: =+I39/I23 -> 0.6656987979 | J67: =+J39/J23 -> 0.6663730101 | K67: =+K39/K23 -> 0.6059386827 | L67: 0.5343132684
B68: 5. Total loans to customers | C68: =+C40/C24 -> 0.6245787888 | D68: =+D40/D24 -> 0.7245931706 | E68: =+E40/E24 -> 0.7573295177 | F68: =+F40/F24 -> 0.8078512485 | G68: =+G40/G24 -> 0.8149236358 | H68: =+H40/H24 -> 0.9624838192 | I68: =+I40/I24 -> 0.8966712756 | J68: =+J40/J24 -> 1.037003164 | K68: =+K40/K24 -> 0.8955780393 | L68: 0.8064654469
B70: LLRs / NPEs
B71: 1. Loans to businesses | C71: =+C36/C27 -> 0.4435014362 | D71: =+D36/D27 -> 0.4527211706 | E71: =+E36/E27 -> 0.4958439007 | F71: =+F36/F27 -> 0.574790452 | G71: =+G36/G27 -> 0.597509085 | H71: =+H36/H27 -> 0.6022730983 | I71: =+I36/I27 -> 0.6142090856 | J71: =+J36/J27 -> 0.6896387556 | K71: =+K36/K27 -> 0.6803316369 | L71: 0.6824051377
B72: 2. Mortgage loans | C72: =+C37/C28 -> 0.1829738911 | D72: =+D37/D28 -> 0.2283973238 | E72: =+E37/E28 -> 0.2260630458 | F72: =+F37/F28 -> 0.2223180893 | G72: =+G37/G28 -> 0.2245988837 | H72: =+H37/H28 -> 0.1859660477 | I72: =+I37/I28 -> 0.1794955434 | J72: =+J37/J28 -> 0.1680705037 | K72: =+K37/K28 -> 0.1649043037 | L72: 0.1590250199
B73: 3. Consumer loans | C73: =+C38/C29 -> 0.785315384 | D73: =+D38/D29 -> 0.8225221006 | E73: =+E38/E29 -> 0.7951972142 | F73: =+F38/F29 -> 0.8000226708 | G73: =+G38/G29 -> 0.7792072191 | H73: =+H38/H29 -> 0.8856669351 | I73: =+I38/I29 -> 0.8748844284 | J73: =+J38/J29 -> 1.18470412 | K73: =+K38/K29 -> 1.140473457 | L73: 1.058573515
B74: 4. Loans to individuals | C74: =+C39/C30 -> 0.4253490514 | D74: =+D39/D30 -> 0.4797990864 | E74: =+E39/E30 -> 0.4624293887 | F74: =+F39/F30 -> 0.4573802231 | G74: =+G39/G30 -> 0.4490384302 | H74: =+H39/H30 -> 0.4224180134 | I74: =+I39/I30 -> 0.4133556081 | J74: =+J39/J30 -> 0.3824348706 | K74: =+K39/K30 -> 0.3769542985 | L74: 0.3611500456
B75: 5. Total loans to customers | C75: =+C40/C31 -> 0.4406271475 | D75: 0.4575563348 | E75: 0.4894990978 | F75: 0.5454628935 | G75: =+G40/G31 -> 0.5569143346 | H75: =+H40/H31 -> 0.568193369 | I75: =+I40/I31 -> 0.5729269723 | J75: =+J40/J31 -> 0.616142871 | K75: =+K40/K31 -> 0.6018121787 | L75: =+L40/L31 -> 0.5881347514
B78: * Gross loans, NPEs & NPLs include loans and advances to customers fair valued through P&L. LLRs include ECL allowance for impairment losses on loans and advances to customers mandatorily measured at FVTPL

Sheet IFRS9 stages
L2: Back to Cover
B5: IFRS9 STAGES
B9: LOAN BOOK EXPOSURE | C9: 2022-03-31 | D9: 2022-06-30 | E9: 2022-09-30 | F9: 2022-12-31 | G9: 2023-03-31 | H9: 2023-06-30 | I9: 2023-09-30 | J9: 2023-12-31 | K9: 2024-03-31 | L9: 2024-06-30
B10: Corporate and public loans | C10: 27969.93011 | D10: 27955.28299 | E10: 28703.22039 | F10: 30012.8782 | G10: 28129.29229 | H10: 28654.61796 | I10: 28978.40244 | J10: 30230.87075 | K10: 29054.40681 | L10: 30209.86889
B11: Stage 1 | C11: 21010.98551 | D11: 22625.14255 | E11: 23610.51993 | F11: 26169.17592 | G11: 24426.34822 | H11: 25064.45772 | I11: 25731.94263 | J11: 27558.26637 | K11: 26450.67739 | L11: 27746.13767
B12: Stage 2 | C12: 2844.330884 | D12: 2398.010718 | E12: 2281.28379 | F12: 1756.801534 | G12: 1814.34096 | H12: 1817.322958 | I12: 1533.973316 | J12: 1510.544984 | K12: 1494.560543 | L12: 1428.242705
B13: Stage 3 & POCI credit impaired | C13: 3918.750254 | D13: 2758.284627 | E13: 2642.622058 | F13: 1912.397852 | G13: 1717.232247 | H13: 1603.28012 | I13: 1567.792576 | J13: 1011.160106 | K13: 965.3601639 | L13: 892.6000261
B14: POCI not credit impaired | C14: 195.8634618 | D14: 173.8450925 | E14: 168.7946074 | F14: 174.5028972 | G14: 171.3708594 | H14: 169.5571642 | I14: 144.6939131 | J14: 150.8992886 | K14: 143.8087147 | L14: 142.8884882
B15: Mortgages | C15: 7114.716119 | D15: 6984.714555 | E15: 6944.80732 | F15: 6879.443845 | G15: 6756.481908 | H15: 6518.346134 | I15: 6475.395602 | J15: 6453.715839 | K15: 6424.850462 | L15: 6419.89705
B16: Stage 1 | C16: 4484.104736 | D16: 4424.646467 | E16: 4515.00839 | F16: 4551.419592 | G16: 4494.753811 | H16: 4455.517915 | I16: 4424.733649 | J16: 4431.08614 | K16: 4471.781873 | L16: 4602.347629
B17: Stage 2 | C17: 1922.780164 | D17: 1944.714306 | E17: 1798.868853 | F17: 1677.219435 | G17: 1600.562641 | H17: 1544.219002 | I17: 1513.830133 | J17: 1514.147596 | K17: 1436.080322 | L17: 1281.606445
B18: Stage 3 & POCI credit impaired | C18: 446.7131272 | D18: 352.7794639 | E18: 369.7551436 | F18: 388.6988495 | G18: 397.3185824 | H18: 256.900124 | I18: 278.9238221 | J18: 250.8687868 | K18: 263.7631056 | L18: 287.3561419
B19: POCI not credit impaired | C19: 261.1180928 | D19: 262.5743177 | E19: 261.1749343 | F19: 262.1059679 | G19: 263.8468734 | H19: 261.7090928 | I19: 257.9079979 | J19: 257.6133165 | K19: 253.2251619 | L19: 248.586835
B20: Consumer loans/Credit cards | C20: 1981.476942 | D20: 1983.95009 | E20: 1986.430285 | F20: 1895.035972 | G20: 1875.528453 | H20: 1751.836634 | I20: 1781.217874 | J20: 1661.032566 | K20: 1668.636292 | L20: 1718.324532
B21: Stage 1 | C21: 1153.85074 | D21: 1204.861943 | E21: 1263.951694 | F21: 1211.537463 | G21: 1207.801759 | H21: 1243.880135 | I21: 1276.212935 | J21: 1225.543247 | K21: 1206.867844 | L21: 1265.061724
B22: Stage 2 | C22: 461.7022782 | D22: 456.2241836 | E22: 397.6818661 | F22: 362.6725332 | G22: 344.7112309 | H22: 325.8106189 | I22: 314.1250724 | J22: 320.8381468 | K22: 342.5977721 | L22: 325.8931184
B23: Stage 3 & POCI credit impaired | C23: 300.8458654 | D23: 258.8461567 | E23: 262.7039837 | F23: 266.7245582 | G23: 270.1521217 | H23: 131.1767209 | I23: 141.3842667 | J23: 67.05854156 | K23: 73.28237892 | L23: 83.31025743
B24: POCI not credit impaired | C24: 65.0780583 | D24: 64.01780572 | E24: 62.09274178 | F24: 54.10141742 | G24: 52.86334128 | H24: 50.96915884 | I24: 49.49560055 | J24: 47.59263145 | K24: 45.88829749 | L24: 44.05943215
B25: Total loans | C25: 37066.12317 | D25: 36923.94763 | E25: 37634.45799 | F25: 38787.35802 | G25: 36761.30265 | H25: 36924.80073 | I25: 37235.01592 | J25: 38345.61915 | K25: 37147.89357 | L25: 38348.09047
B26: Stage 1 | C26: 26648.94099 | D26: 28254.65096 | E26: 29389.48001 | F26: 31932.13297 | G26: 30128.90379 | H26: 30763.85577 | I26: 31432.88922 | J26: 33214.89575 | K26: 32129.32711 | L26: 33613.54702
B27: Stage 2 | C27: 5228.813325 | D27: 4798.949208 | E27: 4477.834509 | F27: 3796.693502 | G27: 3759.614832 | H27: 3687.352579 | I27: 3361.928521 | J27: 3345.530727 | K27: 3273.238637 | L27: 3035.742268
B28: Stage 3 & POCI credit impaired | C28: 4666.309247 | D28: 3369.910248 | E28: 3275.081186 | F28: 2567.821259 | G28: 2384.702951 | H28: 1991.356965 | I28: 1988.100664 | J28: 1329.087434 | K28: 1302.405648 | L28: 1263.266425
B29: POCI not credit impaired | C29: 522.059613 | D29: 500.4372159 | E29: 492.0622835 | F29: 490.7102826 | G29: 488.0810741 | H29: 482.2354158 | I29: 452.0975115 | J29: 456.1052366 | K29: 442.9221741 | L29: 435.5347553
B31: LOAN LOSS RESERVES | C31: 2022-03-31 | D31: 2022-06-30 | E31: 2022-09-30 | F31: 2022-12-31 | G31: 2023-03-31 | H31: 2023-06-30 | I31: 2023-09-30 | J31: 2023-12-31 | K31: 2024-03-31 | L31: 2024-06-30
B32: Corporate and public loans | C32: 1748.929494 | D32: 1261.363052 | E32: 1326.561736 | F32: 1121.031754 | G32: 1049.155905 | H32: 989.0240975 | I32: 986.9292145 | J32: 697.332456 | K32: 656.7627962 | L32: 608.9768128
B33: Stage 1 | C33: 55.50539797 | D33: 59.96358264 | E33: 46.64762989 | F33: 26.42899942 | G33: 32.97803901 | H33: 37.92600215 | I33: 41.86153846 | J33: 35.63017882 | K33: 36.5405595 | L33: 36.2734135
B34: Stage 2 | C34: 111.8530105 | D34: 94.63815991 | E34: 90.33374202 | F34: 67.51506273 | G34: 75.7365771 | H34: 71.29887376 | I34: 60.8258768 | J34: 61.29239656 | K34: 58.99289501 | L34: 58.76043738
B35: Stage 3 & POCI credit impaired | C35: 1576.483072 | D35: 1099.29868 | E35: 1185.329406 | F35: 1023.188295 | G35: 935.9302117 | H35: 876.38279 | I35: 881.3350236 | J35: 596.6907766 | K35: 557.4981667 | L35: 510.0093169
B36: POCI not credit impaired | C36: 5.088013945 | D36: 7.46262963 | E36: 4.250958504 | F36: 3.899396379 | G36: 4.511076874 | H36: 3.416431614 | I36: 2.9067756 | J36: 3.719104021 | K36: 3.731174903 | L36: 3.933645037
B37: Mortgages | C37: 81.75361119 | D37: 80.59492258 | E37: 83.60878765 | F37: 86.43632532 | G37: 89.259122 | H37: 47.79273894 | I37: 50.08382785 | J37: 42.18063908 | K37: 43.51241845 | L37: 45.71307172
B38: Stage 1 | C38: 3.3515154 | D38: 3.29183378 | E38: 3.098264652 | F38: 3.193307762 | G38: 3.188216281 | H38: 2.999996891 | I38: 3.17315545 | J38: 3.384893442 | K38: 3.77142878 | L38: 3.936250006
B39: Stage 2 | C39: 27.606303 | D39: 27.4617187 | E39: 26.37721099 | F39: 19.88784089 | G39: 20.47533581 | H39: 15.57540061 | I39: 15.2937306 | J39: 15.32743495 | K39: 14.37039238 | L39: 12.87328561
B40: Stage 3 & POCI credit impaired | C40: 46.19092896 | D40: 45.57268391 | E40: 49.96083714 | F40: 60.93675668 | G40: 63.12415086 | H40: 27.24646823 | I40: 29.40201093 | J40: 21.27481361 | K40: 23.03953378 | L40: 26.8675119
B41: POCI not credit impaired | C41: 4.60486383 | D41: 4.26868619 | E41: 4.172474867 | F41: 2.418419981 | G41: 2.471419048 | H41: 1.970873205 | I41: 2.21493087 | J41: 2.193497073 | K41: 2.331063504 | L41: 2.036024203
B42: Consumer loans/Credit cards | C42: 236.2588863 | D42: 212.9066846 | E42: 208.901476 | F42: 213.3856934 | G42: 210.5044835 | H42: 116.1788844 | I42: 123.6948934 | J42: 79.44453047 | K42: 83.57660803 | L42: 88.19003203
B43: Stage 1 | C43: 16.73098927 | D43: 16.24501304 | E43: 14.90512468 | F43: 7.620737693 | G43: 6.062928504 | H43: 6.383483918 | I43: 7.57372963 | J43: 8.92739637 | K43: 8.737200979 | L43: 9.021383294
B44: Stage 2 | C44: 41.39106564 | D44: 39.3194168 | E44: 31.91699078 | F44: 32.67573909 | G44: 30.13791534 | H44: 26.12386297 | I44: 25.73359348 | J44: 28.91198661 | K44: 31.1671461 | L44: 29.7739232
B45: Stage 3 & POCI credit impaired | C45: 165.7694899 | D45: 147.000097 | E45: 151.4174695 | F45: 167.8033375 | G45: 169.5479712 | H45: 79.39717101 | I45: 86.15487467 | J45: 37.28498249 | K45: 39.81340781 | L45: 45.80538711
B46: POCI not credit impaired | C46: 12.36734151 | D46: 10.34215773 | E46: 10.661891 | F46: 5.28587913 | G46: 4.755668491 | H46: 4.274366472 | I46: 4.23269558 | J46: 4.320164998 | K46: 3.858853135 | L46: 3.589338422
B47: Total loans | C47: 2066.941992 | D47: 1554.864659 | E47: 1619.072 | F47: 1420.853772 | G47: 1348.91951 | H47: 1152.995721 | I47: 1160.707936 | J47: 818.9576255 | K47: 783.8518226 | L47: 742.8799166
B48: Stage 1 | C48: 75.58790264 | D48: 79.50042946 | E48: 64.65101921 | F48: 37.24304489 | G48: 42.22918378 | H48: 47.30948297 | I48: 52.60842354 | J48: 47.94246863 | K48: 49.04918925 | L48: 49.2310468
B49: Stage 2 | C49: 180.8503792 | D49: 161.4192954 | E49: 148.6279438 | F49: 120.0786427 | G49: 126.3498282 | H49: 112.9981374 | I49: 101.8532009 | J49: 105.5318181 | K49: 104.5304335 | L49: 101.4076462
B50: Stage 3 & POCI credit impaired | C50: 1788.443491 | D50: 1291.871461 | E50: 1386.707713 | F50: 1251.928389 | G50: 1168.602334 | H50: 983.0264292 | I50: 996.8919092 | J50: 655.2505727 | K50: 620.3511083 | L50: 582.6822159
B51: POCI not credit impaired | C51: 22.06021927 | D51: 22.07347355 | E51: 19.08532436 | F51: 11.60369549 | G51: 11.73816442 | H51: 9.661671291 | I51: 9.35440206 | J51: 10.23276608 | K51: 9.921091542 | L51: 9.559007662
B53: *POCI credit imapired refers to purchased or originated credit impaired (“POCI”) loans measured at amortised cost that continue to be credit impaired as of the end of the reporting period
B54: ** Loan figures do not include loans and advances to customers fair valued through P&L. LLRs do not include ECL allowance for impairment losses on loans and advances to customers mandatorily measured at FVTPL

Sheet NPE flow decomposition
L2: Back to Cover
B5: NPE FLOW DECOMPOSITION
B9: Group data, amounts in €mn | C9: Q1.22 | D9: Q2.22 | E9: Q3.22 | F9: Q4.22 | G9: Q1.23 | H9: Q2.23 | I9: Q3.23 | J9: Q4.23 | K9: Q1.24 | L9: Q2.24
B11: NPEs | Beginning of period | C11: 4915.03697 | D11: 4721.739548 | E11: 3425.745327 | F11: 3331.291721 | G11: 2624.316229 | H11: 2441.552917 | I11: 2048.579632 | J11: 2045.456256 | K11: =J28 -> 1329.320358 | L11: =K28 -> 1302.642357
B13: Re-defaults | C13: 40.4 | D13: 38.72 | E13: 31.74 | F13: 39.03 | G13: 34.39 | H13: 23.21 | I13: 18.59 | J13: 16.59 | K13: 16.81 | L13: 13.64
B14: Defaults | C14: 75.1 | D14: 70.05 | E14: 67.31 | F14: 75.85 | G14: 58.4 | H14: 193.13 | I14: 61.39 | J14: 62.79 | K14: 67.61 | L14: 78
B15: Total inflows | C15: =C13+C14 -> 115.5 | D15: 108.77 | E15: 99.05 | F15: =F13+F14 -> 114.88 | G15: =G13+G14 -> 92.79 | H15: =H13+H14 -> 216.34 | I15: =I13+I14 -> 79.98 | J15: =J13+J14 -> 79.38 | K15: =K13+K14 -> 84.42 | L15: =L13+L14 -> 91.64
B16: o/w business | C16: 50.2 | D16: 30.96 | E16: 26.71 | F16: 46.61 | G16: 22.16 | H16: 151.86 | I16: 16.92 | J16: 23.12 | K16: 35.56 | L16: 30.17
B17: o/w mortgage | C17: 42.56 | D17: 52.25 | E17: 50.54 | F17: 47.81 | G17: 51.56 | H17: 47.18 | I17: 44.15 | J17: 40.16 | K17: 33.63 | L17: 44.2
B18: o/w consumer | C18: 22.74 | D18: 25.56 | E18: 21.8 | F18: 20.46 | G18: 19.05 | H18: 17.31 | I18: 18.91 | J18: 16.09 | K18: 15.22 | L18: 17.26
B20: Curings, Collections, Liquidations | C20: -224.1 | D20: -364.17 | E20: -169.97 | F20: -270.57 | G20: -158.27 | H20: -142.7 | I20: -52.54 | J20: -271.54 | K20: -58.24 | L20: -117.54
B21: o/w business | C21: -113.034994 | D21: -292.61 | E21: -125.33 | F21: -225.51 | G21: -101.48 | H21: -110.25 | I21: -21.84 | J21: -236.39 | K21: -30.17 | L21: -89.77
B22: o/w mortgage | C22: -89.28059027 | D22: -54.17 | E22: -31.96 | F22: -28.74 | G22: -41.53 | H22: -20.08 | I22: -22.04 | J22: -22.17 | K22: -20.43 | L22: -20.59
B23: o/w consumer | C23: -21.81255403 | D23: -17.39 | E23: -12.67 | F23: -16.32 | G23: -15.23 | H23: -12.39 | I23: -8.66 | J23: -12.97 | K23: -7.62 | L23: -7.18
B25: Write-offs | C25: -83.1 | D25: -159.02 | E25: -18.75 | F25: -97.63 | G25: -95.11 | H25: -40.4 | I25: -30.6 | J25: -173.77 | K25: -26.32 | L25: -12.8
B26: Sales | C26: -1.6 | D26: -881.57 | E26: -4.79 | F26: -453.65 | G26: -22.18 | H26: -426.21 | I26: 0.04 | J26: -350.21 | K26: -26.54 | L26: -0.43
B28: NPE | End of period | C28: 4721.739548 | D28: 3425.745327 | E28: 3331.291721 | F28: 2624.316229 | G28: 2441.552917 | H28: 2048.579632 | I28: 2045.456256 | J28: 1329.320358 | K28: 1302.642357 | L28: 1263.507148
B31: * Q2.23 business inflow elevated due to one corporate client defaulting

Sheet Capital adequacy
L2: Back to Cover
B5: CAPITAL ADEQUACY
B8: amounts in € mn
C10: 2022-03-31 | D10: 2022-06-30 | E10: 2022-09-30 | F10: 2022-12-31 | G10: 2023-03-31 | H10: 2023-06-30 | I10: 2023-09-30 | J10: 2023-12-31 | K10: 2024-03-31 | L10: 2024-06-30
B12: Phased in data
B13: Reported
B14: Common Equity Tier I | C14: 3561.697342 | D14: 3474.086634 | E14: 3792.489941 | F14: 4064.233986 | G14: 3779.851098 | H14: 3865.996059 | I14: 4110.370457 | J14: 4326.73813 | K14: 4494.475691 | L14: 4729.209607
B15: Total Regulatory Capital | C15: 5053.459665 | D15: 4966.541798 | E15: 5285.087088 | F15: 5557.307684 | G15: 5273.555192 | H15: 5360.413784 | I15: 5604.986616 | J15: 5821.888197 | K15: 6085.081929 | L15: 6336.956969
B16: Risk Weighted Assets | C16: 31670.09759 | D16: 31539.61944 | E16: 31891.5107 | F16: 31178.18794 | G16: 31082.55432 | H16: 31617.01301 | I16: 32172.70353 | J16: 32765.05761 | K16: 33051.26532 | L16: 34143.05129
B17: Common Equity Tier I ratio | C17: 0.1124624682 | D17: 0.1101499224 | E17: 0.1189184789 | F17: 0.1303550416 | G17: 0.1216068364 | H17: 0.1222758158 | I17: 0.1277595603 | J17: 0.1320534266 | K17: 0.1359849811 | L17: 0.1385116276
B18: Total Capital Ratio | C18: 0.1595656487 | D18: 0.1574699342 | E18: 0.1657208132 | F18: 0.1782434468 | G18: 0.1696628642 | H18: 0.1695420684 | I18: 0.1742155927 | J18: 0.1776858831 | K18: 0.1841104076 | L18: 0.1856001947
B20: Pro-Forma(1) | E20: 1 Oct.22
B21: Common Equity Tier I | C21: 3561.697342 | D21: 3586.891039 | E21: 3888.974504 | F21: 4064.233986 | G21: 3779.851098 | H21: 3865.996059 | I21: 4110.370457 | J21: 4326.73813 | K21: 4494.475691 | L21: 4729.209607
B22: Total Regulatory Capital | C22: 5053.459665 | D22: 5079.346203 | E22: 5381.571651 | F22: 5557.307684 | G22: 5273.555192 | H22: 5360.413784 | I22: 5604.986616 | J22: 5921.888197 | K22: 6085.081929 | L22: 6336.956969
B23: Risk Weighted Assets | C23: 31109.1885 | D23: 30466.18685 | E23: 31996.76388 | F23: 31178.18794 | G23: 31082.55432 | H23: 31336.37135 | I23: 31926.63259 | J23: 32557.0584 | K23: 32856.0394 | L23: 33355.95943
B24: Common Equity Tier I ratio | C24: 0.1144902042 | D24: 0.1177335075 | E24: 0.1215427447 | F24: 0.1303550416 | G24: 0.1216068364 | H24: 0.1233708912 | I24: 0.1287442528 | J24: 0.1328970842 | K24: 0.1367929846 | L24: 0.1417800503
B25: Total Capital Ratio | C25: 0.1624426708 | D25: 0.1667207724 | E25: 0.1681911231 | F25: 0.1782434468 | G25: 0.1696628642 | H25: 0.17106045 | I25: 0.1755583399 | J25: 0.181892606 | K25: 0.1852043655 | L25: 0.1899797541
B28: Fully loaded data
B29: Reported
B30: Common Equity Tier I | C30: 3050.607424 | D30: 2954.5648 | E30: 3269.56343 | F30: 3544.599676 | G30: 3779.851098 | H30: 3865.996059 | I30: 4110.370457 | J30: 4326.73813 | K30: 4494.475691 | L30: 4729.209607
B31: Total Regulatory Capital | C31: 4542.369747 | D31: 4447.019964 | E31: 4762.160577 | F31: 5037.673374 | G31: 5273.555192 | H31: 5360.413784 | I31: 5604.986616 | J31: 5821.888197 | K31: 6085.081929 | L31: 6336.956969
B32: Risk Weighted Assets | C32: 31217.72604 | D32: 31084.08547 | E32: 31434.6998 | F32: 30722.61179 | G32: 31082.55432 | H32: 31617.01301 | I32: 32172.70353 | J32: 32765.05761 | K32: 33051.26532 | L32: 34143.05129
B33: Common Equity Tier I ratio | C33: 0.09772035991 | D33: 0.09505072306 | E33: 0.1040112821 | F33: 0.115374295 | G33: 0.1216068364 | H33: 0.1222758158 | I33: 0.1277595603 | J33: 0.1320534266 | K33: 0.1359849811 | L33: 0.1385116276
B34: Total Capital Ratio | C34: 0.1455061058 | D34: 0.1430642046 | E34: 0.1514937508 | F34: 0.1639728226 | G34: 0.1696628642 | H34: 0.1695420684 | I34: 0.1742155927 | J34: 0.1776858831 | K34: 0.1841104076 | L34: 0.1856001947
B36: Pro-Forma(1) | E36: 1 Oct.22
B37: Common Equity Tier I | C37: 3050.607424 | D37: 3067.369205 | E37: 3366.047993 | F37: 3544.599676 | G37: 3779.851098 | H37: 3865.996059 | I37: 4110.370457 | J37: 4326.73813 | K37: 4494.475691 | L37: 4729.209607
B38: Total Regulatory Capital | C38: 4542.369747 | D38: 4559.824369 | E38: 4858.64514 | F38: 5037.673374 | G38: 5273.555192 | H38: 5360.413784 | I38: 5604.986616 | J38: 5921.888197 | K38: 6085.081929 | L38: 6336.956969
B39: Risk Weighted Assets | C39: 30656.81695 | D39: 30010.65289 | E39: 31539.95298 | F39: 30503.44555 | G39: 31082.55432 | H39: 31336.37135 | I39: 31926.63259 | J39: 32557.0584 | K39: 32856.0394 | L39: 33355.95943
B40: Common Equity Tier I ratio | C40: 0.09950828976 | D40: 0.102209346 | E40: 0.1067233041 | F40: 0.1162032555 | G40: 0.1216068364 | H40: 0.1233708912 | I40: 0.1287442528 | J40: 0.1328970842 | K40: 0.1367929846 | L40: 0.1417800503
B41: Total Capital Ratio | C41: 0.1481683423 | D41: 0.1519401922 | E41: 0.1540473172 | F41: 0.1651509619 | G41: 0.1696628642 | H41: 0.17106045 | I41: 0.1755583399 | J41: 0.181892606 | K41: 0.1852043655 | L41: 0.1899797541
B44: MREL ratio (Bank Group data)
B46: Total Regulatory Capital | C46: 5185 | D46: 5086.360884 | E46: 5233.899857 | F46: 5000.533805 | G46: 5225.067948 | H46: 5320.107971 | I46: 5575.78086 | J46: 5900.837804 | K46: 6103.931094 | L46: 6343.411896
B47: MREL eligible liabilities | C47: 585.548 | D47: 579.875 | E47: 577.138384 | F47: 924.065711 | G47: 921.373881 | H47: 1418.21593 | I47: 1415.490069 | J47: 1911.454886 | K47: 2408.654171 | L47: 3055.856298
B48: Risk Weighted Assets | C48: 31648 | D48: 31517 | E48: 31699.45996 | F48: 30588.3672 | G48: 30907.12176 | H48: 31154.7692 | I48: 32044.98241 | J48: 32441.08314 | K48: 32764.57896 | L48: 33264.05768
B49: MREL ratio | C49: 0.1823353134 | D49: 0.1797834782 | E49: 0.1833166321 | F49: 0.1936879951 | G49: 0.1988681404 | H49: 0.2162854701 | I49: 0.2181705341 | J49: 0.240814792 | K49: 0.2598106106 | L49: 0.2825652927
B51: Capital figures include profit for the period throughout the time horizon presented
B52: (1) Pro-forma ratios adjusted for the RWA relief of the sale of NPE loan portfolios and any other regulatory capital adjustments illustrated in quarterly reporting. For Mar.22 capital ratio is illustrated pro forma for the Sunshine leasing NPE portfolio RWA relief, transaction for which loss has been booked in 2021, and for the RWA relief resulting from the synthetic securitization of a shipping portfolio, transaction which is expected to close in the forthcoming period, subject to regulatory approvals. For Jun.22 capital ratio is illustrated pro forma for the expected impact of the Iolcus and Natech transaction developments concluded post 30 June 2022, the RWA relief of the Sunrise 3 and Solar NPE securitization portfolios, classified as held for sale as at 30 June 2022, for which 100% sale scenarios are booked, the RWA relief expected from the mortgage and blended portfolio signed synthetic securitizations, concluded in the following period, as well as other financial developments post 30 Jun.22. For June and September 2023 pro-forma for the RWA relief from the Sunrise 3, Solar, NPE securitizations and the RWA of the Delta and Wheel NPE portfolios, classified as HFS as at 30 June 2023; for December 2023 pro-forma for the RWA relief from the Solar NPE securitization and the RWA of the Delta, Wheel NPE portfolios, classified as HFS as at 30 June 2023 and the RWA of the Monza NPE portfolio, classified as HFS as at 31 December 2023 as well as the capital accretion from the new issuance of Tier 2 in January 2024; for March 2024 pro forma for the RWA relief from the Solar NPE securitizations and the RWA of the Delta, Wheel, Monza NPE portfolios, classified as HFS as at 31 March 2024; MREL at 31 Mar.24 proforma for the RWA relief from the NPE securitizations and sales to be completed in the forthcoming period and the new €500mn Senior Preferred bond issued in Apr.24; for June 2024 pro forma for the RWA relief mainly from the Solar NPE securitization and the RWA Monza NPE portfolio, classified as HFS as at 30 June 2024 and taking into account the revised credit quality step (CQS) mapping of the ICAP-CRIF external credit assessment institution (‘ECAI’), as per the recently published EU Commission Implementing Regulation (EU) 2024/1872 of 1 July 2024; MREL at 30 Jun.24 also proforma for the new €650mn Green Senior Preferred bond issued in Jul.24

Sheet Debt securities
L2: Back to Cover
B5: DEBT SECURITIES
C9: Issuer | D9: Amount(€) | E9: Coupon | F9: Issue Date | G9: Call Date | H9: Reset Spread | I9: Maturity | J9: Denomination | K9: ISIN | L9: Documentation
B10: €500mn 3.875% 6NC5 SP Green Notes due 2027 | C10: Piraeus Bank S.A. | D10: 500000000 | E10: 3.875% | Annual | F10: 03-Nov-21 | G10: 03-Nov-26 | H10: 394.8 bps | I10: 03-Nov-27 | J10: 100k +1k | K10: XS2400040460 | L10: EMTN PROGRAMME
B11: €350mn 8.25% 5NC4 SP Notes due 2027 | C11: Piraeus Bank S.A. | D11: 350000000 | E11: 8.25% | Annual | F11: 28-Nov-22 | G11: 28-Jan-26 | H11: 571.5 bps | I11: 28-Jan-27 | J11: 100k +1k | K11: XS2559486019 | L11: EMTN PROGRAMME
B12: €500mn 7.25% 5NC4 SP Notes due 2028 | C12: Piraeus Bank S.A. | D12: 500000000 | E12: 7.25% | Annual | F12: 13-Jul-23 | G12: 13-Jul-27 | H12: 369.2 bps | I12: 13-Jul-28 | J12: 100k +1k | K12: XS2644936259 | L12: EMTN PROGRAMME
B13: €500mn 6.75% 6NC5 SP Notes due 2029 | C13: Piraeus Bank S.A. | D13: 500000000 | E13: 6.75% | Annual | F13: 05-Dec-23 | G13: 05-Dec-28 | H13: 383.7 bps | I13: 05-Dec-29 | J13: 100k +1k | K13: XS2728486536 | L13: EMTN PROGRAMME
B14: €500mn 5.00% 6NC5 SP Notes due 2030 | C14: Piraeus Bank S.A. | D14: 500000000 | E14: 5.00% | Annual | F14: 16-Apr-24 | G14: 16-Apr-29 | H14: 224.5 bps | I14: 16-Apr-30 | J14: 100k +1k | K14: XS2802909478 | L14: EMTN PROGRAMME
B15: €650mn 4.625% 5NC4 SP Green Notes due 2029 | C15: Piraeus Bank S.A. | D15: 650000000 | E15: 4.625% | Annual | F15: 2024-07-17 | G15: 2028-07-17 | H15: 172.3 bps | I15: 2029-07-17 | J15: 100k +1k | K15: XS2845167613 | L15: EMTN PROGRAMME
B17: €500mn 5.50% 10NC5 T2 Notes due 2030 | C17: Piraeus Financial Holdings S.A. | D17: 500000000 | E17: 5.50% | Annual | F17: 19-Feb-20 | G17: 19-Feb-25 | H17: 577.4 bps | I17: 19-Feb-30 | J17: 100k +1k | K17: XS2121408996 | L17: EMTN PROGRAMME
B18: €500mn 7.250% 10.25NC5.25 Tier 2 due 2034 | C18: Piraeus Financial Holdings S.A. | D18: 500000000 | E18: 7.25% | Annual | F18: 17-Jan-24 | G18: 17-Apr-29 | H18: 477.3 bps | I18: 17-Apr-34 | J18: 100k +1k | K18: XS2747093321 | L18: EMTN PROGRAMME
B20: €600mn 8.75% PerpNC5.5 AT1 Notes | C20: Piraeus Financial Holdings S.A. | D20: 600000000 | E20: 8.75% | Semi-Annual | F20: 16-Jun-21 | G20: 16-Jun-26 | H20: 919.5 bps | I20: Perpetual | J20: 200k +1k | K20: XS2354777265 | L20: STANDALONE

Sheet Other information
L2: Back to Cover
B5: OTHER INFORMATION
B10: BRANCHES PER COUNTRY (#) | C10: 2022-03-31 | D10: 2022-06-30 | E10: 2022-09-30 | F10: 2022-12-31 | G10: 2023-03-31 | H10: 2023-06-30 | I10: 2023-09-30 | J10: 2023-12-31 | K10: 2024-03-31 | L10: 2024-06-30
B11: Group (continued operations) | C11: 428 | D11: 424 | E11: 419 | F11: 405 | G11: 403 | H11: 403 | I11: 402 | J11: 394 | K11: 391 | L11: 386
B12: Greece | C12: 412 | D12: 408 | E12: 403 | F12: 389 | G12: 387 | H12: 387 | I12: 386 | J12: 378 | K12: 375 | L12: 371
B13: Abroad | C13: 16 | D13: 16 | E13: 16 | F13: 16 | G13: 16 | H13: 16 | I13: 16 | J13: 16 | K13: 16 | L13: 15
B15: Discontinued operations | C15: 0 | D15: 0 | E15: 0 | F15: 0 | G15: 0 | H15: 0 | I15: 0 | J15: 0 | K15: 0 | L15: 0
B18: EMPLOYEES PER COUNTRY (#) | C18: 2022-03-31 | D18: 2022-06-30 | E18: 2022-09-30 | F18: 2022-12-31 | G18: 2023-03-31 | H18: 2023-06-30 | I18: 2023-09-30 | J18: 2023-12-31 | K18: 2024-03-31 | L18: 2024-06-30
B19: Group | C19: 10354.7 | D19: 10262.7 | E19: 9417.766 | F19: 8676.151 | G19: 8802.071 | H19: 8898.225 | I19: 8572.158179 | J19: 8087.155 | K19: 7917.56 | L19: 7906.458179
B20: Group (continued operations) | C20: 9251.7 | D20: 9205.7 | E20: 9057.766 | F20: 8604.151 | G20: 8742.071 | H20: 8830.225 | I20: 8537.158179 | J20: 8053.155 | K20: 7883.56 | L20: 7872.458179
B21: Greece | C21: 8879.6 | D21: 8838.6 | E21: 8720.81 | F21: 8270.805 | G21: 8237.475 | H21: 8234.375 | I21: 8166.375 | J21: 7672.375 | K21: 7501.48 | L21: 7489.475
B22: Piraeus Bank Greece | C22: 8546.6 | D22: 8506.6 | E22: 8391.6 | F22: 7933.6 | G22: 7842.1 | H22: 7822.1 | I22: 7802.1 | J22: 7379.1 | K22: 7204.6 | L22: 7181.6
B23: Affiliate companies in Greece | C23: 333 | D23: 332 | E23: 329.21 | F23: 337.205 | G23: 395.375 | H23: 412.275 | I23: 364.275 | J23: 293.275 | K23: 296.88 | L23: 307.875
B24: Abroad | C24: 372.1 | D24: 367.1 | E24: 336.956 | F24: 333.346 | G24: 504.596 | H24: 595.85 | I24: 370.783179 | J24: 380.78 | K24: 382.08 | L24: 382.983179
B25: Discontinued & held for sale operations | C25: 161 | D25: 128 | E25: 198 | F25: 54 | G25: 43 | H25: 52 | I25: 35 | J25: 34 | K25: 34 | L25: 34
B26: Other Discontinued (Imithea SA until 30.06.22) | C26: 942 | D26: 929 | E26: 162 | F26: 18 | G26: 17 | H26: 16 | I26: 0 | J26: 0 | K26: 0 | L26: 0
B28: =+B25 -> Discontinued & held for sale operations | C28: =+C25+C26 -> 1103 | D28: 1057 | E28: =+E25+E26 -> 360 | F28: =+F25+F26 -> 72 | G28: =+G25+G26 -> 60 | H28: 68 | I28: 35 | J28: 34 | K28: 34 | L28: 34
B31: NUMBER OF SHARES | C31: 2022-03-31 | D31: 2022-06-30 | E31: 2022-09-30 | F31: 2022-12-31 | G31: 2023-03-31 | H31: 2023-06-30 | I31: 2023-09-30 | J31: 2023-12-31 | K31: 2024-03-31 | L31: 2024-06-30
B32: Piraeus Bank's shares (end of the period)* | C32: 1250367223 | D32: 1250367223 | E32: 1250367223 | F32: 1250367223 | G32: 1250367223 | H32: 1250367223 | I32: 1250367223 | J32: 1250367223 | K32: 1250367223 | L32: 1250367223
B33: PB's shares minus treasury stock (average of period)** | C33: 1249734974 | D33: 1249851815 | E33: 1249714516 | F33: 1249647205 | G33: 1250020910 | H33: 1250054239 | I33: 1249777043 | J33: 1248386766 | K33: 1245490626 | L33: 1245564731
B34: Adjusted PB's shares minus treasury stock (avg of period)*** | C34: =1249734974 -> 1249734974 | D34: 1249851815 | E34: 1249714516 | F34: 1249647205 | G34: 1250020910 | H34: 1250054239 | I34: 1249777043 | J34: 1248386766 | K34: 1245490626 | L34: 1245564731
B36: * Outstanding number of shares
B37: ** Weighted average number of shares in issue for the basic EPS calculation
B38: *** Weighted average number of shares in issue for the diluted EPS calculation
B40: SHARE & STOCK MARKET DATA | C40: 2022-03-31 | D40: 2022-06-30 | E40: 2022-09-30 | F40: 2022-12-31 | G40: 2023-03-31 | H40: 2023-06-30 | I40: 2023-09-30 | J40: 2023-12-31 | K40: 2024-03-31 | L40: 2024-06-30
B41: Market capitalization (€mn) | C41: 1769.269621 | D41: 1171.844161 | E41: 1296.6381 | F41: 1798.028067 | G41: 2498.233712 | H41: 3758.603872 | I41: 3513.531897 | J41: 4001.175114 | K41: 4846.423356 | L41: 4258.750762
B42: Tangible book value per share (€) | C42: 4.241886625 | D42: 4.248667033 | E42: 4.339625912 | F42: 4.511301877 | G42: 4.658711371 | H42: 4.73475943 | I42: 4.935338104 | J42: 5.079121464 | K42: 5.269749461 | L42: 5.424116912
B43: Price/tangible book ratio | C43: =(C41/(C32/1000000))/C42 -> 0.3335779866 | D43: 0.2205868317 | E43: 0.2389620329 | F43: 0.3187549934 | G43: 0.4288739612 | H43: 0.6348791411 | I43: 0.569363221 | J43: =(J41/(J32/1000000))/J42 -> 0.6300302174 | K43: =(K41/(K32/1000000))/K42 -> 0.7355188379 | L43: =(L41/(L32/1000000))/L42 -> 0.6279363177
B44: EPS reported (€) | C44: 0.4063910111 | D44: 0.06345095948 | E44: 0.08199271231 | F44: 0.1251128445 | G44: 0.1332696483 | H44: 0.0852213638 | I44: 0.2113411125 | J44: 0.1584470517 | K44: 0.1759539085 | L44: 0.2534311474
B45: Core EPS (€) | C45: 0.0590502996 | D45: 0.09562898395 | E45: 0.06680080324 | F45: 0.1400813228 | G45: 0.1457931691 | H45: 0.1537194132 | I45: 0.2326998346 | J45: 0.2171801971 | K45: 0.2351053837 | L45: 0.2404919013
B46: EPS normalized (€) | C46: 0.1168957059 | D46: 0.07566045027 | E46: 0.07108434483 | F46: 0.1557311252 | G46: 0.1524104251 | H46: 0.1799293133 | I46: 0.2125937414 | J46: 0.2505471946 | K46: 0.2128831121 | L46: 0.2558673843
B47: Price/earnings normalized (%) | C47: 2.776848409 | D47: 2.719442452 | E47: 3.177830965 | F47: 2.162691666 | G47: 3.066160161 | H47: 3.946410124 | I47: 3.148944055 | J47: 3.064616157 | K47: 4.337898992 | L47: 3.196749708
B49: * For simplification, all EPS figures are calculated with the current number of shares
B51: PIRAEUS BANK CREDIT RATINGS (outlook) | C51: 2022-03-31 | D51: 2022-06-30 | E51: 2022-09-30 | F51: 2022-12-31 | G51: 2023-03-31 | H51: 2023-06-30 | I51: 2023-09-30 | J51: 2023-12-31 | K51: 2024-03-31 | L51: 2024-06-30
B52: Moody's1 | C52: B2 (Positive) | D52: B2 (Positive) | E52: B2 (Positive) | F52: Ba3 (Stable) | G52: Ba3 (Stable) | H52: Ba3 (Stable) | I52: Ba1 (Positive) | J52: Ba1 (Positive) | K52: Ba1 (Positive) | L52: Ba1 (Positive)2
B53: S&P Global | C53: B (Stable) | D53: B (Positive) | E53: B (Positive) | F53: B (Positive) | G53: B (Positive) | H53: B+ (Positive) | I53: B+ (Positive) | J53: BB- (Positive) | K53: BB- (Positive) | L53: BB- (Positive)3
B54: Fitch | C54: B- (Positive) | D54: B- (Positive) | E54: B- (Positive) | F54: B- (Positive) | G54: B (Positive) | H54: B (Positive) | I54: BB- (Stable) | J54: BB- (Positive) | K54: BB- (Positive) | L54: BB- (Positive)
B55: DBRS | C55: B (Stable) | D55: B (Stable) | E55: B (Stable) | F55: B high (Stable) | G55: B high (Stable) | H55: B high (Stable) | I55: B high (Stable) | J55: BB (Stable) | K55: BB (Stable) | L55: BB (Stable)
B57: 1. Moody’s Rating refers to Long Term Deposit Rating
B58: 2. As at 8 July 2024 Moody's upgraded Piraeus Bank rating to Baa3 (Positive)
B59: 3. As at 4 July 2024 S&P Global upgraded Piraeus Bank rating to BB (Positive)
